Workbook

Sheet Hovedside
A2: Introduktion til brug af energibesparelsesværktøj RELS
A3: Værktøjet benyttes til at undersøge energibesparelsespotentialet til laboratorieventilation. Ved at foretage målinger og registreringer af en eksisterende situation kan værktøjet beregne besparelsespotentialer for ventilator, stinkskabe, Laf-bænke m.m. For yderligere information om værktøjets brug kan vejledningen læses ved tryk på den røde bog →
A11: Navn: | B11: Morten Jakobsen | I11: Dato: | J11: 2016-08-01
A12: Projektnr.: | B12: 123-456
A14: Investering: | B14: 17500 | E14: Varmepris: | F14: 600 | G14: [kr./MWh] | I14: NB! Alle priser oplyses eksl. moms
A15: Tilskudspris: | B15: 0.3 | C15: [kr./kWh] | E15: Elpris: | F15: 2 | G15: [kr./kWh]
E16: Energiforbrug
E17: Før | H17: Efter
E18: 11615.89248 | F18: [kWh/år] | H18: 5917.2768 | I18: [kWh/år]
E19: 534.29376 | F19: [kWh/år] | H19: 366.0384 | I19: [kWh/år]
A22: Samlet varmeforbrug | E22: =IF(E18="","",E18) -> 11615.89248 | F22: [kWh/år] | H22: =IF(H18="","",H18) -> 5917.2768 | I22: [kWh/år]
A23: Samlet elforbrug | E23: =IF(E19="","",E19) -> 534.29376 | F23: [kWh/år] | H23: =IF(H19="","",H19) -> 366.0384 | I23: [kWh/år]
A25: Procentvis reduktion af varmeforbrug | H25: =IF(OR(E22=0,E22=""),"",1-H22/E22) -> 0.4905878468
A26: Procentvis reduktion af elforbrug | H26: =IF(OR(E23=0,E23=""),"",1-H23/E23) -> 0.314911707
A28: Årlig varmebesparelse | H28: =IF(E22="","",E22-H22) -> 5698.61568 | I28: [kWh/år]
A29: Årlig elbesparelse | H29: =IF(E23="","",E23-H23) -> 168.25536 | I29: [kWh/år]
A30: Årlig økonomisk energibesparelse, eksl. moms | H30: =IF(OR(H28="",H29=""),"",H28*F14/1000+H29*F15) -> 3755.680128 | I30: [kr./år]
A31: Salg af energibesparelse, eksl. moms | H31: =IF(OR(H28="",H29=""),"",(H28+H29)*B15) -> 1760.061312 | I31: [kr.]
A33: Tilbagebetalingstid | H33: =IF(OR(B14=0,B14="",H30=0,H30="",H31=""),"",(B14-H31)/H30) -> 4.190968919 | I33: [år]
A37: Kommentarer:
A38: Skriv kommentar…

Sheet Stinkskabe, LAF-bænke (hidden)
A1: Stinkskabe, LAF-bænke
C3: Målt | E3: Oplyst | H3: Beregnet
A4: Signatur:
A12: Antal stinkskabe | E12: 5 | F12: stk. | I12: Guide til målinger og registreringer til bestemmelse af stinkskabes varmeforbrug - Læs guide ved tryk på billedikonet til højre for teksten →
A14: Driftstimer pr. dag | E14: 10 | F14: timer pr. dag | R14: 1 | S14: Ja | T14: 1 | U14: Ja | W14: 1 | X14: Ja | Z14: 1 | AA14: 0,5 m | AC14: 1 | AD14: Ja
A15: Antal dage om ugen | E15: 7 | F15: dage pr. uge | R15: 2 | S15: Nej | T15: 2 | U15: Nej | W15: 2 | X15: Nej | Z15: 2 | AA15: 1,0 m | AC15: 2 | AD15: Nej
Z16: 3 | AA16: 1,5 m
R17: =INDEX(R14:R15,MATCH(E22,S14:S15,0)) -> 1 | T17: =INDEX(T14:T15,MATCH(E23,U14:U15,0)) -> 2 | W17: =INDEX(W14:W15,MATCH(E24,X14:X15,0)) -> 1 | Z17: =INDEX(Z14:Z16,MATCH(E25,AA14:AA16,0)) -> 1 | AC17: =INDEX(AC14:AC15,MATCH(E26,AD14:AD15,0)) -> 2
A18: Skønnet tid hvor stinkskabene er fuldt åbne | E18: 0.3 | P18: Guide
A19: Skønnet tid hvor stinkskabene er lukket | E19: =1-E18 -> 0.7
A22: Er der VGV ved alle stinkskabe | E22: Ja | F22: Tryk på celle E22 for at benytte rullemenu
A23: Er der automatisk luge-luk styring på alle stinkskabene | E23: Nej | F23: Tryk på celle E23 for at benytte rullemenu
A24: Arbejdes der med sundhedsfarlige stoffer | E24: Ja | F24: Tryk på celle E24 for at benytte rullemenu
A25: Gangliniens afstand fra stinkskabe | E25: 0,5 m | F25: Tryk på celle E25 for at benytte rullemenu
A26: Ønskes der i stinkskabet installeret sugearm i fremtiden | E26: Nej | F26: Tryk på celle E26 for at benytte rullemenu
A28: Aggregat | E28: Fuldt åbent | H28: Lukket i arbejdstiden | J28: Lukket udenfor arbejdstiden | N28: Automatisk luge-luk styring | P28: Sundheds- skadelige stoffer
A29: Anlægsnr. | B29: Stinkskabsnr. | D29: Stinkskabsbredde | E29: Lugeåbning | F29: Lufthastighed | H29: Lugeåbning | I29: Lufthastighed | J29: Lufthastighed | L29: Tryk* | M29: VGV
D30: [m] | E30: [cm] | F30: [m/s] | H30: [cm] | I30: [m/s] | J30: [m/s] | L30: [Pa]
A31: VE01 | B31: 1 | D31: 1 | E31: 50 | F31: 0.5 | H31: 12 | I31: 0.3 | J31: 0.3 | L31: 110 | M31: Ja | N31: Nej | P31: Ja
A32: VE01 | B32: 2 | D32: 1 | E32: 50 | F32: 0.5 | H32: 12 | I32: 0.3 | J32: 0.3 | L32: 110 | M32: Ja | N32: Nej | P32: Ja
A33: VE01 | B33: 3 | D33: 1 | E33: 50 | F33: 0.5 | H33: 12 | I33: 0.3 | J33: 0.3 | L33: 110 | M33: Ja | N33: Nej | P33: Ja
A34: ve01 | B34: 4 | D34: 1 | E34: 50 | F34: 0.5 | H34: 12 | I34: 0.3 | J34: 0.3 | L34: 110 | M34: Ja | N34: Nej | P34: Ja
A35: ve01 | B35: 5 | D35: 1 | E35: 50 | F35: 0.5 | H35: 12 | I35: 0.3 | J35: 0.3 | L35: 110 | M35: Ja | N35: Nej | P35: Ja
B36: 6 | N36: Nej | P36: Ja
B37: 7 | N37: Nej | P37: Ja
B38: 8 | N38: Nej | P38: Ja
B39: 9 | N39: Nej | P39: Ja
B40: 10 | N40: Nej | P40: Ja
B41: 11 | N41: Nej | P41: Ja
B42: 12 | N42: Nej | P42: Ja
B43: 13 | N43: Nej | P43: Ja
B44: 14 | N44: Nej | P44: Ja
B45: 15 | N45: Nej | P45: Ja
B46: 16 | N46: Nej | P46: Ja
B47: 17 | N47: Nej | P47: Ja
B48: 18 | N48: Nej | P48: Ja
B49: 19 | N49: Nej | P49: Ja
B50: 20 | N50: Nej | P50: Ja
B51: 21 | N51: Nej | P51: Ja
B52: 22 | N52: Nej | P52: Ja
B53: 23 | N53: Nej | P53: Ja
B54: 24 | N54: Nej | P54: Ja
B55: 25 | N55: Nej | P55: Ja
B56: 26 | N56: Nej | P56: Ja
B57: 27 | N57: Nej | P57: Ja
B58: 28 | N58: Nej | P58: Ja
B59: 29 | N59: Nej | P59: Ja
B60: 30 | N60: Nej | P60: Ja
B61: 31 | N61: Nej | P61: Ja
B62: 32 | N62: Nej | P62: Ja
B63: 33 | N63: Nej | P63: Ja
B64: 34 | N64: Nej | P64: Ja
B65: 35 | N65: Nej | P65: Ja
B66: 36 | N66: Nej | P66: Ja
B67: 37 | N67: Nej | P67: Ja
B68: 38 | N68: Nej | P68: Ja
B69: 39 | N69: Nej | P69: Ja
B70: 40 | N70: Nej | P70: Ja
B71: 41 | N71: Nej | P71: Ja
B72: 42 | N72: Nej | P72: Ja
B73: 43 | N73: Nej | P73: Ja
B74: 44 | N74: Nej | P74: Ja
B75: 45 | N75: Nej | P75: Ja
B76: 46 | N76: Nej | P76: Ja
B77: 47 | N77: Nej | P77: Ja
B78: 48 | N78: Nej | P78: Ja
B79: 49 | N79: Nej | P79: Ja
B80: 50 | N80: Nej | P80: Ja
B81: 51 | N81: Nej | P81: Ja
B82: 52 | N82: Nej | P82: Ja
B83: 53 | N83: Nej | P83: Ja
B84: 54 | N84: Nej | P84: Ja
B85: 55 | N85: Nej | P85: Ja
B86: 56 | N86: Nej | P86: Ja
B87: 57 | N87: Nej | P87: Ja
B88: 58 | N88: Nej | P88: Ja
B89: 59 | N89: Nej | P89: Ja
B90: 60 | N90: Nej | P90: Ja
B91: 61 | N91: Nej | P91: Ja
B92: 62 | N92: Nej | P92: Ja
B93: 63 | N93: Nej | P93: Ja
B94: 64 | N94: Nej | P94: Ja
B95: 65 | N95: Nej | P95: Ja
B96: 66 | N96: Nej | P96: Ja
B97: 67 | N97: Nej | P97: Ja
B98: 68 | N98: Nej | P98: Ja
B99: 69 | N99: Nej | P99: Ja
B100: 70 | N100: Nej | P100: Ja
B101: 71 | N101: Nej | P101: Ja
B102: 72 | N102: Nej | P102: Ja
B103: 73 | N103: Nej | P103: Ja
B104: 74 | N104: Nej | P104: Ja
B105: 75 | N105: Nej | P105: Ja
B106: 76 | N106: Nej | P106: Ja
B107: 77 | N107: Nej | P107: Ja
B108: 78 | N108: Nej | P108: Ja
B109: 79 | N109: Nej | P109: Ja
B110: 80 | N110: Nej | P110: Ja
B111: 81 | N111: Nej | P111: Ja
B112: 82 | N112: Nej | P112: Ja
B113: 83 | N113: Nej | P113: Ja
B114: 84 | N114: Nej | P114: Ja
B115: 85 | N115: Nej | P115: Ja
B116: 86 | N116: Nej | P116: Ja
B117: 87 | N117: Nej | P117: Ja
B118: 88 | N118: Nej | P118: Ja
B119: 89 | N119: Nej | P119: Ja
B120: 90 | N120: Nej | P120: Ja
B121: 91 | N121: Nej | P121: Ja
B122: 92 | N122: Nej | P122: Ja
B123: 93 | N123: Nej | P123: Ja
B124: 94 | N124: Nej | P124: Ja
B125: 95 | N125: Nej | P125: Ja
B126: 96 | N126: Nej | P126: Ja
B127: 97 | N127: Nej | P127: Ja
B128: 98 | N128: Nej | P128: Ja
B129: 99 | N129: Nej | P129: Ja
B130: 100 | N130: Nej | P130: Ja
N131: Nej | P131: Ja
A134: *Tryk måles umiddelbart efter stinkskabet og før et evt. spjæld
X138: Stinkskabe, LAF-bænke mm
X143: Ved et tryk på over 40 Pa over stinkskabet foreslås en reducering af trykket til 40 Pa
A145: Område skjules
N147: Funktion nedenfor | Q147: Funktion nedenfor | R147: Funktion nedenfor | Z147: Funktion nedenfor | AA147: Funktion nedenfor
A150: FØR | I150: EFTER
M152: Fuldt åbent | P152: Lukket i arbejdstiden | R152: Lukket udenfor arbejdstiden
A153: Luftmængde åbent | B153: Luftmængde lukket | C153: Luftmængde uden for arbejdstiden | D153: Energiforbrug | G153: Energiforbrug | I153: Lab.nr/navn | J153: Stinkskabs nr. | L153: Stinkskabsbredde | M153: Lugeåbning | N153: Lufthastighed | P153: Lugeåbning | Q153: Lufthastighed | R153: Lufthastighed | T153: Tryk* | U153: VGV | W153: Luftmængde åbent | X153: Luftmængde lukket | Y153: Luftmængde uden for arbejdstiden | Z153: Energiforbrug | AC153: Energiforbrug | AE153: Check for aggregatnavne
A154: [m3/h] | D154: [kWh/år] | G154: [kWh/år] | L154: [m] | M154: [cm] | N154: [m/s] | P154: [cm] | Q154: [m/s] | R154: [m/s] | T154: [Pa] | W154: [m3/h] | Z154: [kWh/år] | AC154: [kWh/år] | AJ154: antal aggregater | AK154: antal celler uden indtastning
A155: =IF(B31="","",D31*E31*F31/100*3600) -> 900 | B155: =IF($B31="","",$D31*$H31*I31/100*3600) -> 129.6 | C155: 129.6 | D155: =IF(B31="","",0.005*A155*(IF($E$14>=8,8,$E$14))*$E$15*4*12*$E$18*(1-IF($M31="ja",0.63,0))) -> 1342.656 | E155: =IF(B31="","",0.005*B155*(IF($E$14>=8,8,$E$14))*$E$15*4*12*$E$19*(1-IF($M31="ja",0.63,0))) -> 451.132416 | F155: =IF(B31="","",IF($E$15<=5,0.005*C155*($E$14-8)*$E$15*4*12*(1-IF($M31="ja",0.63,0)),0.005*C155*(($E$14-8)*$E$15+($E$15-5)*16)*4*12*(1-IF($M31="ja",0.63,0)))) -> 529.39008 | G155: =IF(H155=0,"",D155+E155+F155) -> 2323.178496 | H155: =IF(B31<=$E$12,1,0) -> 1 | I155: =IF(A31="","",A31) -> VE01 | J155: =B31 -> 1 | L155: =D31 -> 1 | M155: 50 | N155: =IF(AND($E$24="Nej",OR(E25=$AA$16,$E$26="Ja")),IF(F31>=0.4,0.4,F31),F31) -> 0.5 | P155: =IF(H31>5,5,H31) -> 5 | Q155: =IF(I31>=0.3,0.3,I31) -> 0.3 | R155: =IF(J31>=0.1,0.1,J31) -> 0.1 | T155: =L31 -> 110 | U155: Ja | W155: =IF(J155="","",L155*M155*N155/100*3600) -> 900 | X155: =IF(J155="","",L155*P155*Q155/100*3600) -> 54 | Y155: =IF(J155="","",L155*P155*R155/100*3600) -> 18 | Z155: =IF(J155="","",0.005*W155*(IF($E$14>=8,8,$E$14))*$E$15*4*12*IF(N31="Nej",$E$18-10%,$E$18)*(1-IF(U155="ja",0.63,0))) -> 895.104 | AA155: =IF(J155="","",0.005*X155*(IF($E$14>=8,8,$E$14))*$E$15*4*12*IF(N31="Nej",$E$19+10%,$E$19)*(1-IF(U155="ja",0.63,0))) -> 214.82496 | AB155: =IF(J155="","",IF($E$15<=5,0.005*Y155*($E$14-8)*$E$15*4*12*(1-IF(U155="ja",0.63,0)),0.005*Y155*(($E$14-8)*$E$15+($E$15-5)*16)*4*12*(1-IF($M31="ja",0.63,0)))) -> 73.5264 | AC155: =IF(AD155=0,"",Z155+AA155+AB155) -> 1183.45536 | AD155: =IF(B31<=$E$12,1,0) -> 1 | AE155: 1 | AF155: =SUM(IF(AE155:AE163=1,W155:W163)) -> 4500 | AJ155: =SUMPRODUCT(1/COUNTIF(AE155:AE254,AE155:AE254))+IF(AK156>0,-1,0) -> 1
A156: =IF(B32="","",D32*E32*F32/100*3600) -> 900 | B156: 129.6 | C156: 129.6 | D156: =IF(B32="","",0.005*A156*(IF($E$14>=8,8,$E$14))*$E$15*4*12*$E$18*(1-IF($M32="ja",0.63,0))) -> 1342.656 | E156: =IF(B32="","",0.005*B156*(IF($E$14>=8,8,$E$14))*$E$15*4*12*$E$19*(1-IF($M32="ja",0.63,0))) -> 451.132416 | F156: =IF(B32="","",IF($E$15<=5,0.005*C156*($E$14-8)*$E$15*4*12*(1-IF($M32="ja",0.63,0)),0.005*C156*(($E$14-8)*$E$15+($E$15-5)*16)*4*12*(1-IF($M32="ja",0.63,0)))) -> 529.39008 | G156: =IF(H156=0,"",D156+E156+F156) -> 2323.178496 | H156: =IF(B32<=$E$12,1,0) -> 1 | I156: =IF(A32="","",A32) -> VE01 | J156: =B32 -> 2 | L156: 1 | M156: 50 | N156: =IF(AND($E$24="Nej",OR(E26=$AA$16,$E$26="Ja")),IF(F32>=0.4,0.4,F32),F32) -> 0.5 | P156: =IF(H32>5,5,H32) -> 5 | Q156: =IF(I32>=0.3,0.3,I32) -> 0.3 | R156: =IF(J32>=0.1,0.1,J32) -> 0.1 | T156: =L32 -> 110 | U156: Ja | W156: =IF(J156="","",L156*M156*N156/100*3600) -> 900 | X156: =IF(J156="","",L156*P156*Q156/100*3600) -> 54 | Y156: =IF(J156="","",L156*P156*R156/100*3600) -> 18 | Z156: =IF(J156="","",0.005*W156*(IF($E$14>=8,8,$E$14))*$E$15*4*12*IF(N32="Nej",$E$18-10%,$E$18)*(1-IF(U156="ja",0.63,0))) -> 895.104 | AA156: =IF(J156="","",0.005*X156*(IF($E$14>=8,8,$E$14))*$E$15*4*12*IF(N32="Nej",$E$19+10%,$E$19)*(1-IF(U156="ja",0.63,0))) -> 214.82496 | AB156: =IF(J156="","",IF($E$15<=5,0.005*Y156*($E$14-8)*$E$15*4*12*(1-IF(U156="ja",0.63,0)),0.005*Y156*(($E$14-8)*$E$15+($E$15-5)*16)*4*12*(1-IF($M32="ja",0.63,0)))) -> 73.5264 | AC156: =IF(AD156=0,"",Z156+AA156+AB156) -> 1183.45536 | AD156: =IF(B32<=$E$12,1,0) -> 1 | AE156: =IF(A32="",0,IF(A32=A31,AE155,IF(A32<>A31,1+AE155))) -> 1 | AF156: =SUM(IF(AE155:AE163=2,W155:W163)) -> 0 | AK156: =COUNTIF(AE155:AE254,"=0") -> 95
A157: =IF(B33="","",D33*E33*F33/100*3600) -> 900 | B157: 129.6 | C157: 129.6 | D157: =IF(B33="","",0.005*A157*(IF($E$14>=8,8,$E$14))*$E$15*4*12*$E$18*(1-IF($M33="ja",0.63,0))) -> 1342.656 | E157: =IF(B33="","",0.005*B157*(IF($E$14>=8,8,$E$14))*$E$15*4*12*$E$19*(1-IF($M33="ja",0.63,0))) -> 451.132416 | F157: =IF(B33="","",IF($E$15<=5,0.005*C157*($E$14-8)*$E$15*4*12*(1-IF($M33="ja",0.63,0)),0.005*C157*(($E$14-8)*$E$15+($E$15-5)*16)*4*12*(1-IF($M33="ja",0.63,0)))) -> 529.39008 | G157: =IF(H157=0,"",D157+E157+F157) -> 2323.178496 | H157: =IF(B33<=$E$12,1,0) -> 1 | I157: =IF(A33="","",A33) -> VE01 | J157: =B33 -> 3 | L157: 1 | M157: 50 | N157: =IF(AND($E$24="Nej",OR(E27=$AA$16,$E$26="Ja")),IF(F33>=0.4,0.4,F33),F33) -> 0.5 | P157: =IF(H33>5,5,H33) -> 5 | Q157: =IF(I33>=0.3,0.3,I33) -> 0.3 | R157: =IF(J33>=0.1,0.1,J33) -> 0.1 | T157: =L33 -> 110 | U157: Ja | W157: =IF(J157="","",L157*M157*N157/100*3600) -> 900 | X157: =IF(J157="","",L157*P157*Q157/100*3600) -> 54 | Y157: =IF(J157="","",L157*P157*R157/100*3600) -> 18 | Z157: =IF(J157="","",0.005*W157*(IF($E$14>=8,8,$E$14))*$E$15*4*12*IF(N33="Nej",$E$18-10%,$E$18)*(1-IF(U157="ja",0.63,0))) -> 895.104 | AA157: =IF(J157="","",0.005*X157*(IF($E$14>=8,8,$E$14))*$E$15*4*12*IF(N33="Nej",$E$19+10%,$E$19)*(1-IF(U157="ja",0.63,0))) -> 214.82496 | AB157: =IF(J157="","",IF($E$15<=5,0.005*Y157*($E$14-8)*$E$15*4*12*(1-IF(U157="ja",0.63,0)),0.005*Y157*(($E$14-8)*$E$15+($E$15-5)*16)*4*12*(1-IF($M33="ja",0.63,0)))) -> 73.5264 | AC157: =IF(AD157=0,"",Z157+AA157+AB157) -> 1183.45536 | AD157: =IF(B33<=$E$12,1,0) -> 1 | AE157: =IF(A33="",0,IF(A33=A32,AE156,IF(A33<>A32,1+AE156))) -> 1 | AF157: =SUM(IF(AE155:AE163=3,W155:W163)) -> 0
A158: =IF(B34="","",D34*E34*F34/100*3600) -> 900 | B158: 129.6 | C158: 129.6 | D158: =IF(B34="","",0.005*A158*(IF($E$14>=8,8,$E$14))*$E$15*4*12*$E$18*(1-IF($M34="ja",0.63,0))) -> 1342.656 | E158: =IF(B34="","",0.005*B158*(IF($E$14>=8,8,$E$14))*$E$15*4*12*$E$19*(1-IF($M34="ja",0.63,0))) -> 451.132416 | F158: =IF(B34="","",IF($E$15<=5,0.005*C158*($E$14-8)*$E$15*4*12*(1-IF($M34="ja",0.63,0)),0.005*C158*(($E$14-8)*$E$15+($E$15-5)*16)*4*12*(1-IF($M34="ja",0.63,0)))) -> 529.39008 | G158: =IF(H158=0,"",D158+E158+F158) -> 2323.178496 | H158: =IF(B34<=$E$12,1,0) -> 1 | I158: =IF(A34="","",A34) -> ve01 | J158: =B34 -> 4 | L158: 1 | M158: 50 | N158: =IF(AND($E$24="Nej",OR(E28=$AA$16,$E$26="Ja")),IF(F34>=0.4,0.4,F34),F34) -> 0.5 | P158: =IF(H34>5,5,H34) -> 5 | Q158: =IF(I34>=0.3,0.3,I34) -> 0.3 | R158: =IF(J34>=0.1,0.1,J34) -> 0.1 | T158: =L34 -> 110 | U158: Ja | W158: =IF(J158="","",L158*M158*N158/100*3600) -> 900 | X158: =IF(J158="","",L158*P158*Q158/100*3600) -> 54 | Y158: =IF(J158="","",L158*P158*R158/100*3600) -> 18 | Z158: =IF(J158="","",0.005*W158*(IF($E$14>=8,8,$E$14))*$E$15*4*12*IF(N34="Nej",$E$18-10%,$E$18)*(1-IF(U158="ja",0.63,0))) -> 895.104 | AA158: =IF(J158="","",0.005*X158*(IF($E$14>=8,8,$E$14))*$E$15*4*12*IF(N34="Nej",$E$19+10%,$E$19)*(1-IF(U158="ja",0.63,0))) -> 214.82496 | AB158: =IF(J158="","",IF($E$15<=5,0.005*Y158*($E$14-8)*$E$15*4*12*(1-IF(U158="ja",0.63,0)),0.005*Y158*(($E$14-8)*$E$15+($E$15-5)*16)*4*12*(1-IF($M34="ja",0.63,0)))) -> 73.5264 | AC158: =IF(AD158=0,"",Z158+AA158+AB158) -> 1183.45536 | AD158: =IF(B34<=$E$12,1,0) -> 1 | AE158: =IF(A34="",0,IF(A34=A33,AE157,IF(A34<>A33,1+AE157))) -> 1
A159: =IF(B35="","",D35*E35*F35/100*3600) -> 900 | B159: 129.6 | C159: 129.6 | D159: =IF(B35="","",0.005*A159*(IF($E$14>=8,8,$E$14))*$E$15*4*12*$E$18*(1-IF($M35="ja",0.63,0))) -> 1342.656 | E159: =IF(B35="","",0.005*B159*(IF($E$14>=8,8,$E$14))*$E$15*4*12*$E$19*(1-IF($M35="ja",0.63,0))) -> 451.132416 | F159: =IF(B35="","",IF($E$15<=5,0.005*C159*($E$14-8)*$E$15*4*12*(1-IF($M35="ja",0.63,0)),0.005*C159*(($E$14-8)*$E$15+($E$15-5)*16)*4*12*(1-IF($M35="ja",0.63,0)))) -> 529.39008 | G159: =IF(H159=0,"",D159+E159+F159) -> 2323.178496 | H159: =IF(B35<=$E$12,1,0) -> 1 | I159: =IF(A35="","",A35) -> ve01 | J159: =B35 -> 5 | L159: 1 | M159: 50 | N159: =IF(AND($E$24="Nej",OR(E29=$AA$16,$E$26="Ja")),IF(F35>=0.4,0.4,F35),F35) -> 0.5 | P159: =IF(H35>5,5,H35) -> 5 | Q159: =IF(I35>=0.3,0.3,I35) -> 0.3 | R159: =IF(J35>=0.1,0.1,J35) -> 0.1 | T159: =L35 -> 110 | U159: Ja | W159: =IF(J159="","",L159*M159*N159/100*3600) -> 900 | X159: =IF(J159="","",L159*P159*Q159/100*3600) -> 54 | Y159: =IF(J159="","",L159*P159*R159/100*3600) -> 18 | Z159: =IF(J159="","",0.005*W159*(IF($E$14>=8,8,$E$14))*$E$15*4*12*IF(N35="Nej",$E$18-10%,$E$18)*(1-IF(U159="ja",0.63,0))) -> 895.104 | AA159: =IF(J159="","",0.005*X159*(IF($E$14>=8,8,$E$14))*$E$15*4*12*IF(N35="Nej",$E$19+10%,$E$19)*(1-IF(U159="ja",0.63,0))) -> 214.82496 | AB159: =IF(J159="","",IF($E$15<=5,0.005*Y159*($E$14-8)*$E$15*4*12*(1-IF(U159="ja",0.63,0)),0.005*Y159*(($E$14-8)*$E$15+($E$15-5)*16)*4*12*(1-IF($M35="ja",0.63,0)))) -> 73.5264 | AC159: =IF(AD159=0,"",Z159+AA159+AB159) -> 1183.45536 | AD159: =IF(B35<=$E$12,1,0) -> 1 | AE159: =IF(A35="",0,IF(A35=A34,AE158,IF(A35<>A34,1+AE158))) -> 1
A160: =IF(B36="",0,D36*E36*F36/100*3600) -> 0 | B160: =IF($B36="",0,$D36*$H36*I36/100*3600) -> 0 | C160: =IF($B36="",0,$D36*$H36*J36/100*3600) -> 0 | D160: =IF(B36="",0,0.005*A160*(IF($E$14>=8,8,$E$14))*$E$15*4*12*$E$18*(1-IF($M36="ja",0.63,0))) -> 0 | E160: =IF(B36="",0,0.005*B160*(IF($E$14>=8,8,$E$14))*$E$15*4*12*$E$19*(1-IF($M36="ja",0.63,0))) -> 0 | F160: =IF(B36="",0,IF($E$15<=5,0.005*C160*($E$14-8)*$E$15*4*12*(1-IF($M36="ja",0.63,0)),0.005*C160*(($E$14-8)*$E$15+($E$15-5)*16)*4*12*(1-IF($M36="ja",0.63,0)))) -> 0 | G160: =IF(H160=0,"",D160+E160+F160) ->  | H160: =IF(B36<=$E$12,1,0) -> 0 | I160: =IF(A36="","",A36) ->  | J160: =B36 -> 6 | L160: =D36 -> 0 | M160: =E36 -> 0 | N160: =IF(AND($E$24="Nej",OR(E30=$AA$16,$E$26="Ja")),IF(F36>=0.4,0.4,F36),F36) -> 0 | P160: =IF(H36>5,5,H36) -> 0 | Q160: =IF(I36>=0.3,0.3,I36) -> 0 | R160: =IF(J36>=0.1,0.1,J36) -> 0 | T160: =L36 -> 0 | U160: Ja | W160: =IF(J160="","",L160*M160*N160/100*3600) -> 0 | X160: =IF(J160="","",L160*P160*Q160/100*3600) -> 0 | Y160: =IF(J160="","",L160*P160*R160/100*3600) -> 0 | Z160: =IF(J160="","",0.005*W160*(IF($E$14>=8,8,$E$14))*$E$15*4*12*IF(N36="Nej",$E$18-10%,$E$18)*(1-IF(U160="ja",0.63,0))) -> 0 | AA160: =IF(J160="","",0.005*X160*(IF($E$14>=8,8,$E$14))*$E$15*4*12*IF(N36="Nej",$E$19+10%,$E$19)*(1-IF(U160="ja",0.63,0))) -> 0 | AB160: =IF(J160="","",IF($E$15<=5,0.005*Y160*($E$14-8)*$E$15*4*12*(1-IF(U160="ja",0.63,0)),0.005*Y160*(($E$14-8)*$E$15+($E$15-5)*16)*4*12*(1-IF($M36="ja",0.63,0)))) -> 0 | AC160: =IF(AD160=0,"",Z160+AA160+AB160) ->  | AD160: =IF(B36<=$E$12,1,0) -> 0 | AE160: =IF(A36="",0,IF(A36=A35,AE159,IF(A36<>A35,1+AE159))) -> 0
A161: =IF(B37="",0,D37*E37*F37/100*3600) -> 0 | B161: =IF($B37="",0,$D37*$H37*I37/100*3600) -> 0 | C161: =IF($B37="",0,$D37*$H37*J37/100*3600) -> 0 | D161: =IF(B37="",0,0.005*A161*(IF($E$14>=8,8,$E$14))*$E$15*4*12*$E$18*(1-IF($M37="ja",0.63,0))) -> 0 | E161: =IF(B37="",0,0.005*B161*(IF($E$14>=8,8,$E$14))*$E$15*4*12*$E$19*(1-IF($M37="ja",0.63,0))) -> 0 | F161: =IF(B37="",0,IF($E$15<=5,0.005*C161*($E$14-8)*$E$15*4*12*(1-IF($M37="ja",0.63,0)),0.005*C161*(($E$14-8)*$E$15+($E$15-5)*16)*4*12*(1-IF($M37="ja",0.63,0)))) -> 0 | H161: 0 | J161: 7 | L161: 0 | M161: 0 | N161: 0 | P161: 0 | Q161: 0 | R161: 0 | T161: 0 | U161: Ja | W161: 0 | X161: 0 | Y161: 0 | Z161: 0 | AA161: 0 | AB161: 0 | AD161: 0 | AE161: 0
A162: 0 | B162: 0 | C162: 0 | D162: 0 | E162: 0 | F162: 0 | H162: 0 | J162: 8 | L162: 0 | M162: 0 | N162: 0 | P162: 0 | Q162: 0 | R162: 0 | T162: 0 | U162: Ja | W162: 0 | X162: 0 | Y162: 0 | Z162: 0 | AA162: 0 | AB162: 0 | AD162: 0 | AE162: 0
A163: 0 | B163: 0 | C163: 0 | D163: 0 | E163: 0 | F163: 0 | H163: 0 | J163: 9 | L163: 0 | M163: 0 | N163: 0 | P163: 0 | Q163: 0 | R163: 0 | T163: 0 | U163: Ja | W163: 0 | X163: 0 | Y163: 0 | Z163: 0 | AA163: 0 | AB163: 0 | AD163: 0 | AE163: 0
A164: 0 | B164: 0 | C164: 0 | D164: 0 | E164: =IF(B40="",0,0.005*B164*(IF($E$14>=8,8,$E$14))*$E$15*4*12*$E$19*(1-IF($M40="ja",0.63,0))) -> 0 | F164: 0 | H164: 0 | J164: 10 | L164: 0 | M164: 0 | N164: 0 | P164: 0 | Q164: 0 | R164: 0 | T164: 0 | U164: Ja | W164: 0 | X164: 0 | Y164: 0 | Z164: 0 | AA164: 0 | AB164: 0 | AD164: 0 | AE164: 0
A165: 0 | B165: 0 | C165: 0 | D165: 0 | E165: =IF(B41="",0,0.005*B165*(IF($E$14>=8,8,$E$14))*$E$15*4*12*$E$19*(1-IF($M41="ja",0.63,0))) -> 0 | F165: 0 | H165: 0 | J165: 11 | L165: 0 | M165: 0 | N165: 0 | P165: 0 | Q165: 0 | R165: 0 | T165: 0 | U165: Ja | W165: 0 | X165: 0 | Y165: 0 | Z165: 0 | AA165: 0 | AB165: 0 | AD165: 0 | AE165: 0
A166: 0 | B166: 0 | C166: 0 | D166: 0 | E166: 0 | F166: 0 | H166: 0 | J166: 12 | L166: 0 | M166: 0 | N166: 0 | P166: 0 | Q166: 0 | R166: 0 | T166: 0 | U166: Ja | W166: 0 | X166: 0 | Y166: 0 | Z166: 0 | AA166: 0 | AB166: 0 | AD166: 0 | AE166: 0
A167: 0 | B167: 0 | C167: 0 | D167: 0 | E167: 0 | F167: 0 | H167: 0 | J167: 13 | L167: 0 | M167: 0 | N167: 0 | P167: 0 | Q167: 0 | R167: 0 | T167: 0 | U167: Ja | W167: 0 | X167: 0 | Y167: 0 | Z167: 0 | AA167: 0 | AB167: 0 | AD167: 0 | AE167: 0
A168: 0 | B168: 0 | C168: 0 | D168: 0 | E168: 0 | F168: 0 | H168: 0 | J168: 14 | L168: 0 | M168: 0 | N168: 0 | P168: 0 | Q168: 0 | R168: 0 | T168: 0 | U168: Ja | W168: 0 | X168: 0 | Y168: 0 | Z168: 0 | AA168: 0 | AB168: 0 | AD168: 0 | AE168: 0
A169: 0 | B169: 0 | C169: 0 | D169: 0 | E169: 0 | F169: 0 | H169: 0 | J169: 15 | L169: 0 | M169: 0 | N169: 0 | P169: 0 | Q169: 0 | R169: 0 | T169: 0 | U169: Ja | W169: 0 | X169: 0 | Y169: 0 | Z169: 0 | AA169: 0 | AB169: 0 | AD169: 0 | AE169: 0
A170: 0 | B170: 0 | C170: 0 | D170: 0 | E170: 0 | F170: 0 | H170: 0 | J170: 16 | L170: 0 | M170: 0 | N170: 0 | P170: 0 | Q170: 0 | R170: 0 | T170: 0 | U170: Ja | W170: 0 | X170: 0 | Y170: 0 | Z170: 0 | AA170: 0 | AB170: 0 | AD170: 0 | AE170: 0
A171: 0 | B171: 0 | C171: 0 | D171: 0 | E171: 0 | F171: 0 | H171: 0 | J171: 17 | L171: 0 | M171: 0 | N171: 0 | P171: 0 | Q171: 0 | R171: 0 | T171: 0 | U171: Ja | W171: 0 | X171: 0 | Y171: 0 | Z171: 0 | AA171: 0 | AB171: 0 | AD171: 0 | AE171: 0
A172: 0 | B172: 0 | C172: 0 | D172: 0 | E172: 0 | F172: 0 | H172: 0 | J172: 18 | L172: 0 | M172: 0 | N172: 0 | P172: 0 | Q172: 0 | R172: 0 | T172: 0 | U172: Ja | W172: 0 | X172: 0 | Y172: 0 | Z172: 0 | AA172: 0 | AB172: 0 | AD172: 0 | AE172: 0
A173: 0 | B173: 0 | C173: 0 | D173: 0 | E173: 0 | F173: 0 | H173: 0 | J173: 19 | L173: 0 | M173: 0 | N173: 0 | P173: 0 | Q173: 0 | R173: 0 | T173: 0 | U173: Ja | W173: 0 | X173: 0 | Y173: 0 | Z173: 0 | AA173: 0 | AB173: 0 | AD173: 0 | AE173: 0
A174: 0 | B174: 0 | C174: 0 | D174: 0 | E174: 0 | F174: 0 | H174: 0 | J174: 20 | L174: 0 | M174: 0 | N174: 0 | P174: 0 | Q174: 0 | R174: 0 | T174: 0 | U174: Ja | W174: 0 | X174: 0 | Y174: 0 | Z174: 0 | AA174: 0 | AB174: 0 | AD174: 0 | AE174: 0
A175: 0 | B175: 0 | C175: 0 | D175: 0 | E175: 0 | F175: 0 | H175: 0 | J175: 21 | L175: 0 | M175: 0 | N175: 0 | P175: 0 | Q175: 0 | R175: 0 | T175: 0 | U175: Ja | W175: 0 | X175: 0 | Y175: 0 | Z175: 0 | AA175: 0 | AB175: 0 | AD175: 0 | AE175: 0
A176: 0 | B176: 0 | C176: 0 | D176: 0 | E176: 0 | F176: 0 | H176: 0 | J176: 22 | L176: 0 | M176: 0 | N176: 0 | P176: 0 | Q176: 0 | R176: 0 | T176: 0 | U176: Ja | W176: 0 | X176: 0 | Y176: 0 | Z176: 0 | AA176: 0 | AB176: 0 | AD176: 0 | AE176: 0
A177: 0 | B177: 0 | C177: 0 | D177: 0 | E177: 0 | F177: 0 | H177: 0 | J177: 23 | L177: 0 | M177: 0 | N177: 0 | P177: 0 | Q177: 0 | R177: 0 | T177: 0 | U177: Ja | W177: 0 | X177: 0 | Y177: 0 | Z177: 0 | AA177: 0 | AB177: 0 | AD177: 0 | AE177: 0
A178: 0 | B178: 0 | C178: 0 | D178: 0 | E178: 0 | F178: 0 | H178: 0 | J178: 24 | L178: 0 | M178: 0 | N178: 0 | P178: 0 | Q178: 0 | R178: 0 | T178: 0 | U178: Ja | W178: 0 | X178: 0 | Y178: 0 | Z178: 0 | AA178: 0 | AB178: 0 | AD178: 0 | AE178: 0
A179: 0 | B179: 0 | C179: 0 | D179: 0 | E179: 0 | F179: 0 | H179: 0 | J179: 25 | L179: 0 | M179: 0 | N179: 0 | P179: 0 | Q179: 0 | R179: 0 | T179: 0 | U179: Ja | W179: 0 | X179: 0 | Y179: 0 | Z179: 0 | AA179: 0 | AB179: 0 | AD179: 0 | AE179: 0
A180: 0 | B180: 0 | C180: 0 | D180: 0 | E180: 0 | F180: 0 | H180: 0 | J180: 26 | L180: 0 | M180: 0 | N180: 0 | P180: 0 | Q180: 0 | R180: 0 | T180: 0 | U180: Ja | W180: 0 | X180: 0 | Y180: 0 | Z180: 0 | AA180: 0 | AB180: 0 | AD180: 0 | AE180: 0
A181: 0 | B181: 0 | C181: 0 | D181: 0 | E181: 0 | F181: 0 | H181: 0 | J181: 27 | L181: 0 | M181: 0 | N181: 0 | P181: 0 | Q181: 0 | R181: 0 | T181: 0 | U181: Ja | W181: 0 | X181: 0 | Y181: 0 | Z181: 0 | AA181: 0 | AB181: 0 | AD181: 0 | AE181: 0
A182: 0 | B182: 0 | C182: 0 | D182: 0 | E182: 0 | F182: 0 | H182: 0 | J182: 28 | L182: 0 | M182: 0 | N182: 0 | P182: 0 | Q182: 0 | R182: 0 | T182: 0 | U182: Ja | W182: 0 | X182: 0 | Y182: 0 | Z182: 0 | AA182: 0 | AB182: 0 | AD182: 0 | AE182: 0
A183: 0 | B183: 0 | C183: 0 | D183: 0 | E183: 0 | F183: 0 | H183: 0 | J183: 29 | L183: 0 | M183: 0 | N183: 0 | P183: 0 | Q183: 0 | R183: 0 | T183: 0 | U183: Ja | W183: 0 | X183: 0 | Y183: 0 | Z183: 0 | AA183: 0 | AB183: 0 | AD183: 0 | AE183: 0
A184: 0 | B184: 0 | C184: 0 | D184: 0 | E184: 0 | F184: 0 | H184: 0 | J184: 30 | L184: 0 | M184: 0 | N184: 0 | P184: 0 | Q184: 0 | R184: 0 | T184: 0 | U184: Ja | W184: 0 | X184: 0 | Y184: 0 | Z184: 0 | AA184: 0 | AB184: 0 | AD184: 0 | AE184: 0
A185: 0 | B185: 0 | C185: 0 | D185: 0 | E185: 0 | F185: 0 | H185: 0 | J185: 31 | L185: 0 | M185: 0 | N185: 0 | P185: 0 | Q185: 0 | R185: 0 | T185: 0 | U185: Ja | W185: 0 | X185: 0 | Y185: 0 | Z185: 0 | AA185: 0 | AB185: 0 | AD185: 0 | AE185: 0
A186: 0 | B186: 0 | C186: 0 | D186: 0 | E186: 0 | F186: 0 | H186: 0 | J186: 32 | L186: 0 | M186: 0 | N186: 0 | P186: 0 | Q186: 0 | R186: 0 | T186: 0 | U186: Ja | W186: 0 | X186: 0 | Y186: 0 | Z186: 0 | AA186: 0 | AB186: 0 | AD186: 0 | AE186: 0
A187: 0 | B187: 0 | C187: 0 | D187: 0 | E187: 0 | F187: 0 | H187: 0 | J187: 33 | L187: 0 | M187: 0 | N187: 0 | P187: 0 | Q187: 0 | R187: 0 | T187: 0 | U187: Ja | W187: 0 | X187: 0 | Y187: 0 | Z187: 0 | AA187: 0 | AB187: 0 | AD187: 0 | AE187: 0
A188: 0 | B188: 0 | C188: 0 | D188: 0 | E188: 0 | F188: 0 | H188: 0 | J188: 34 | L188: 0 | M188: 0 | N188: 0 | P188: 0 | Q188: 0 | R188: 0 | T188: 0 | U188: Ja | W188: 0 | X188: 0 | Y188: 0 | Z188: 0 | AA188: 0 | AB188: 0 | AD188: 0 | AE188: 0
A189: 0 | B189: 0 | C189: 0 | D189: 0 | E189: 0 | F189: 0 | H189: 0 | J189: 35 | L189: 0 | M189: 0 | N189: 0 | P189: 0 | Q189: 0 | R189: 0 | T189: 0 | U189: Ja | W189: 0 | X189: 0 | Y189: 0 | Z189: 0 | AA189: 0 | AB189: 0 | AD189: 0 | AE189: 0
A190: 0 | B190: 0 | C190: 0 | D190: 0 | E190: 0 | F190: 0 | H190: 0 | J190: 36 | L190: 0 | M190: 0 | N190: 0 | P190: 0 | Q190: 0 | R190: 0 | T190: 0 | U190: Ja | W190: 0 | X190: 0 | Y190: 0 | Z190: 0 | AA190: 0 | AB190: 0 | AD190: 0 | AE190: 0
A191: 0 | B191: 0 | C191: 0 | D191: 0 | E191: 0 | F191: 0 | H191: 0 | J191: 37 | L191: 0 | M191: 0 | N191: 0 | P191: 0 | Q191: 0 | R191: 0 | T191: 0 | U191: Ja | W191: 0 | X191: 0 | Y191: 0 | Z191: 0 | AA191: 0 | AB191: 0 | AD191: 0 | AE191: 0
A192: 0 | B192: 0 | C192: 0 | D192: 0 | E192: 0 | F192: 0 | H192: 0 | J192: 38 | L192: 0 | M192: 0 | N192: 0 | P192: 0 | Q192: 0 | R192: 0 | T192: 0 | U192: Ja | W192: 0 | X192: 0 | Y192: 0 | Z192: 0 | AA192: 0 | AB192: 0 | AD192: 0 | AE192: 0
A193: 0 | B193: 0 | C193: 0 | D193: 0 | E193: 0 | F193: 0 | H193: 0 | J193: 39 | L193: 0 | M193: 0 | N193: 0 | P193: 0 | Q193: 0 | R193: 0 | T193: 0 | U193: Ja | W193: 0 | X193: 0 | Y193: 0 | Z193: 0 | AA193: 0 | AB193: 0 | AD193: 0 | AE193: 0
A194: 0 | B194: 0 | C194: 0 | D194: 0 | E194: 0 | F194: 0 | H194: 0 | J194: 40 | L194: 0 | M194: 0 | N194: 0 | P194: 0 | Q194: 0 | R194: 0 | T194: 0 | U194: Ja | W194: 0 | X194: 0 | Y194: 0 | Z194: 0 | AA194: 0 | AB194: 0 | AD194: 0 | AE194: 0
A195: 0 | B195: 0 | C195: 0 | D195: 0 | E195: 0 | F195: 0 | H195: 0 | J195: 41 | L195: 0 | M195: 0 | N195: 0 | P195: 0 | Q195: 0 | R195: 0 | T195: 0 | U195: Ja | W195: 0 | X195: 0 | Y195: 0 | Z195: 0 | AA195: 0 | AB195: 0 | AD195: 0 | AE195: 0
A196: 0 | B196: 0 | C196: 0 | D196: 0 | E196: 0 | F196: 0 | H196: 0 | J196: 42 | L196: 0 | M196: 0 | N196: 0 | P196: 0 | Q196: 0 | R196: 0 | T196: 0 | U196: Ja | W196: 0 | X196: 0 | Y196: 0 | Z196: 0 | AA196: 0 | AB196: 0 | AD196: 0 | AE196: 0
A197: 0 | B197: 0 | C197: 0 | D197: 0 | E197: 0 | F197: 0 | H197: 0 | J197: 43 | L197: 0 | M197: 0 | N197: 0 | P197: 0 | Q197: 0 | R197: 0 | T197: 0 | U197: Ja | W197: 0 | X197: 0 | Y197: 0 | Z197: 0 | AA197: 0 | AB197: 0 | AD197: 0 | AE197: 0
A198: 0 | B198: 0 | C198: 0 | D198: 0 | E198: 0 | F198: 0 | H198: 0 | J198: 44 | L198: 0 | M198: 0 | N198: 0 | P198: 0 | Q198: 0 | R198: 0 | T198: 0 | U198: Ja | W198: 0 | X198: 0 | Y198: 0 | Z198: 0 | AA198: 0 | AB198: 0 | AD198: 0 | AE198: 0
A199: 0 | B199: 0 | C199: 0 | D199: 0 | E199: 0 | F199: 0 | H199: 0 | J199: 45 | L199: 0 | M199: 0 | N199: 0 | P199: 0 | Q199: 0 | R199: 0 | T199: 0 | U199: Ja | W199: 0 | X199: 0 | Y199: 0 | Z199: 0 | AA199: 0 | AB199: 0 | AD199: 0 | AE199: 0
A200: 0 | B200: 0 | C200: 0 | D200: 0 | E200: 0 | F200: 0 | H200: 0 | J200: 46 | L200: 0 | M200: 0 | N200: 0 | P200: 0 | Q200: 0 | R200: 0 | T200: 0 | U200: Ja | W200: 0 | X200: 0 | Y200: 0 | Z200: 0 | AA200: 0 | AB200: 0 | AD200: 0 | AE200: 0
A201: 0 | B201: 0 | C201: 0 | D201: 0 | E201: 0 | F201: 0 | H201: 0 | J201: 47 | L201: 0 | M201: 0 | N201: 0 | P201: 0 | Q201: 0 | R201: 0 | T201: 0 | U201: Ja | W201: 0 | X201: 0 | Y201: 0 | Z201: 0 | AA201: 0 | AB201: 0 | AD201: 0 | AE201: 0
A202: 0 | B202: 0 | C202: 0 | D202: 0 | E202: 0 | F202: 0 | H202: 0 | J202: 48 | L202: 0 | M202: 0 | N202: 0 | P202: 0 | Q202: 0 | R202: 0 | T202: 0 | U202: Ja | W202: 0 | X202: 0 | Y202: 0 | Z202: 0 | AA202: 0 | AB202: 0 | AD202: 0 | AE202: 0
A203: 0 | B203: 0 | C203: 0 | D203: 0 | E203: 0 | F203: 0 | H203: 0 | J203: 49 | L203: 0 | M203: 0 | N203: 0 | P203: 0 | Q203: 0 | R203: 0 | T203: 0 | U203: Ja | W203: 0 | X203: 0 | Y203: 0 | Z203: 0 | AA203: 0 | AB203: 0 | AD203: 0 | AE203: 0
A204: 0 | B204: 0 | C204: 0 | D204: 0 | E204: 0 | F204: 0 | H204: 0 | J204: 50 | L204: 0 | M204: 0 | N204: 0 | P204: 0 | Q204: 0 | R204: 0 | T204: 0 | U204: Ja | W204: 0 | X204: 0 | Y204: 0 | Z204: 0 | AA204: 0 | AB204: 0 | AD204: 0 | AE204: 0
A205: 0 | B205: 0 | C205: 0 | D205: 0 | E205: 0 | F205: 0 | H205: 0 | J205: 51 | L205: 0 | M205: 0 | N205: 0 | P205: 0 | Q205: 0 | R205: 0 | T205: 0 | U205: Ja | W205: 0 | X205: 0 | Y205: 0 | Z205: 0 | AA205: 0 | AB205: 0 | AD205: 0 | AE205: 0
A206: 0 | B206: 0 | C206: 0 | D206: 0 | E206: 0 | F206: 0 | H206: 0 | J206: 52 | L206: 0 | M206: 0 | N206: 0 | P206: 0 | Q206: 0 | R206: 0 | T206: 0 | U206: Ja | W206: 0 | X206: 0 | Y206: 0 | Z206: 0 | AA206: 0 | AB206: 0 | AD206: 0 | AE206: 0
A207: 0 | B207: 0 | C207: 0 | D207: 0 | E207: 0 | F207: 0 | H207: 0 | J207: 53 | L207: 0 | M207: 0 | N207: 0 | P207: 0 | Q207: 0 | R207: 0 | T207: 0 | U207: Ja | W207: 0 | X207: 0 | Y207: 0 | Z207: 0 | AA207: 0 | AB207: 0 | AD207: 0 | AE207: 0
A208: 0 | B208: 0 | C208: 0 | D208: 0 | E208: 0 | F208: 0 | H208: 0 | J208: 54 | L208: 0 | M208: 0 | N208: 0 | P208: 0 | Q208: 0 | R208: 0 | T208: 0 | U208: Ja | W208: 0 | X208: 0 | Y208: 0 | Z208: 0 | AA208: 0 | AB208: 0 | AD208: 0 | AE208: 0
A209: 0 | B209: 0 | C209: 0 | D209: 0 | E209: 0 | F209: 0 | H209: 0 | J209: 55 | L209: 0 | M209: 0 | N209: 0 | P209: 0 | Q209: 0 | R209: 0 | T209: 0 | U209: Ja | W209: 0 | X209: 0 | Y209: 0 | Z209: 0 | AA209: 0 | AB209: 0 | AD209: 0 | AE209: 0
A210: 0 | B210: 0 | C210: 0 | D210: 0 | E210: 0 | F210: 0 | H210: 0 | J210: 56 | L210: 0 | M210: 0 | N210: 0 | P210: 0 | Q210: 0 | R210: 0 | T210: 0 | U210: Ja | W210: 0 | X210: 0 | Y210: 0 | Z210: 0 | AA210: 0 | AB210: 0 | AD210: 0 | AE210: 0
A211: 0 | B211: 0 | C211: 0 | D211: 0 | E211: 0 | F211: 0 | H211: 0 | J211: 57 | L211: 0 | M211: 0 | N211: 0 | P211: 0 | Q211: 0 | R211: 0 | T211: 0 | U211: Ja | W211: 0 | X211: 0 | Y211: 0 | Z211: 0 | AA211: 0 | AB211: 0 | AD211: 0 | AE211: 0
A212: 0 | B212: 0 | C212: 0 | D212: 0 | E212: 0 | F212: 0 | H212: 0 | J212: 58 | L212: 0 | M212: 0 | N212: 0 | P212: 0 | Q212: 0 | R212: 0 | T212: 0 | U212: Ja | W212: 0 | X212: 0 | Y212: 0 | Z212: 0 | AA212: 0 | AB212: 0 | AD212: 0 | AE212: 0
A213: 0 | B213: 0 | C213: 0 | D213: 0 | E213: 0 | F213: 0 | H213: 0 | J213: 59 | L213: 0 | M213: 0 | N213: 0 | P213: 0 | Q213: 0 | R213: 0 | T213: 0 | U213: Ja | W213: 0 | X213: 0 | Y213: 0 | Z213: 0 | AA213: 0 | AB213: 0 | AD213: 0 | AE213: 0
A214: 0 | B214: 0 | C214: 0 | D214: 0 | E214: 0 | F214: 0 | H214: 0 | J214: 60 | L214: 0 | M214: 0 | N214: 0 | P214: 0 | Q214: 0 | R214: 0 | T214: 0 | U214: Ja | W214: 0 | X214: 0 | Y214: 0 | Z214: 0 | AA214: 0 | AB214: 0 | AD214: 0 | AE214: 0
A215: 0 | B215: 0 | C215: 0 | D215: 0 | E215: 0 | F215: 0 | H215: 0 | J215: 61 | L215: 0 | M215: 0 | N215: 0 | P215: 0 | Q215: 0 | R215: 0 | T215: 0 | U215: Ja | W215: 0 | X215: 0 | Y215: 0 | Z215: 0 | AA215: 0 | AB215: 0 | AD215: 0 | AE215: 0
A216: 0 | B216: 0 | C216: 0 | D216: 0 | E216: 0 | F216: 0 | H216: 0 | J216: 62 | L216: 0 | M216: 0 | N216: 0 | P216: 0 | Q216: 0 | R216: 0 | T216: 0 | U216: Ja | W216: 0 | X216: 0 | Y216: 0 | Z216: 0 | AA216: 0 | AB216: 0 | AD216: 0 | AE216: 0
A217: 0 | B217: 0 | C217: 0 | D217: 0 | E217: 0 | F217: 0 | H217: 0 | J217: 63 | L217: 0 | M217: 0 | N217: 0 | P217: 0 | Q217: 0 | R217: 0 | T217: 0 | U217: Ja | W217: 0 | X217: 0 | Y217: 0 | Z217: 0 | AA217: 0 | AB217: 0 | AD217: 0 | AE217: 0
A218: 0 | B218: 0 | C218: 0 | D218: 0 | E218: 0 | F218: 0 | H218: 0 | J218: 64 | L218: 0 | M218: 0 | N218: 0 | P218: 0 | Q218: 0 | R218: 0 | T218: 0 | U218: Ja | W218: 0 | X218: 0 | Y218: 0 | Z218: 0 | AA218: 0 | AB218: 0 | AD218: 0 | AE218: 0
A219: 0 | B219: 0 | C219: 0 | D219: 0 | E219: 0 | F219: 0 | H219: 0 | J219: 65 | L219: 0 | M219: 0 | N219: 0 | P219: 0 | Q219: 0 | R219: 0 | T219: 0 | U219: Ja | W219: 0 | X219: 0 | Y219: 0 | Z219: 0 | AA219: 0 | AB219: 0 | AD219: 0 | AE219: 0
A220: 0 | B220: 0 | C220: 0 | D220: 0 | E220: 0 | F220: 0 | H220: 0 | J220: 66 | L220: 0 | M220: 0 | N220: 0 | P220: 0 | Q220: 0 | R220: 0 | T220: 0 | U220: Ja | W220: 0 | X220: 0 | Y220: 0 | Z220: 0 | AA220: 0 | AB220: 0 | AD220: 0 | AE220: 0
A221: 0 | B221: 0 | C221: 0 | D221: 0 | E221: 0 | F221: 0 | H221: 0 | J221: 67 | L221: 0 | M221: 0 | N221: 0 | P221: 0 | Q221: 0 | R221: 0 | T221: 0 | U221: Ja | W221: 0 | X221: 0 | Y221: 0 | Z221: 0 | AA221: 0 | AB221: 0 | AD221: 0 | AE221: 0
A222: 0 | B222: 0 | C222: 0 | D222: 0 | E222: 0 | F222: 0 | H222: 0 | J222: 68 | L222: 0 | M222: 0 | N222: 0 | P222: 0 | Q222: 0 | R222: 0 | T222: 0 | U222: Ja | W222: 0 | X222: 0 | Y222: 0 | Z222: 0 | AA222: 0 | AB222: 0 | AD222: 0 | AE222: 0
A223: 0 | B223: 0 | C223: 0 | D223: 0 | E223: 0 | F223: 0 | H223: 0 | J223: 69 | L223: 0 | M223: 0 | N223: 0 | P223: 0 | Q223: 0 | R223: 0 | T223: 0 | U223: Ja | W223: 0 | X223: 0 | Y223: 0 | Z223: 0 | AA223: 0 | AB223: 0 | AD223: 0 | AE223: 0
A224: 0 | B224: 0 | C224: 0 | D224: 0 | E224: 0 | F224: 0 | G224: =IF(H224=0,"",D224+E224+F224) ->  | H224: =IF(B100<=$E$12,1,0) -> 0 | I224: =IF(A100="","",A100) ->  | J224: =B100 -> 70 | L224: =D100 -> 0 | M224: =E100 -> 0 | N224: =IF(AND($E$24="Nej",OR(E94=$AA$16,$E$26="Ja")),IF(F100>=0.4,0.4,F100),F100) -> 0 | P224: =IF(H100>5,5,H100) -> 0 | Q224: =IF(I100>=0.3,0.3,I100) -> 0 | R224: =IF(J100>=0.1,0.1,J100) -> 0 | T224: =L100 -> 0 | U224: Ja | W224: =IF(J224="","",L224*M224*N224/100*3600) -> 0 | X224: =IF(J224="","",L224*P224*Q224/100*3600) -> 0 | Y224: =IF(J224="","",L224*P224*R224/100*3600) -> 0 | Z224: =IF(J224="","",0.005*W224*(IF($E$14>=8,8,$E$14))*$E$15*4*12*IF(N100="Nej",$E$18-10%,$E$18)*(1-IF(U224="ja",0.63,0))) -> 0 | AA224: =IF(J224="","",0.005*X224*(IF($E$14>=8,8,$E$14))*$E$15*4*12*IF(N100="Nej",$E$19+10%,$E$19)*(1-IF(U224="ja",0.63,0))) -> 0 | AB224: =IF(J224="","",IF($E$15<=5,0.005*Y224*($E$14-8)*$E$15*4*12*(1-IF(U224="ja",0.63,0)),0.005*Y224*(($E$14-8)*$E$15+($E$15-5)*16)*4*12*(1-IF($M100="ja",0.63,0)))) -> 0 | AC224: =IF(AD224=0,"",Z224+AA224+AB224) ->  | AD224: =IF(B100<=$E$12,1,0) -> 0 | AE224: =IF(A100="",0,IF(A100=A99,AE223,IF(A100<>A99,1+AE223))) -> 0
A225: =IF(B101="",0,D101*E101*F101/100*3600) -> 0 | B225: =IF($B101="",0,$D101*$H101*I101/100*3600) -> 0 | C225: =IF($B101="",0,$D101*$H101*J101/100*3600) -> 0 | D225: =IF(B101="",0,0.005*A225*(IF($E$14>=8,8,$E$14))*$E$15*4*12*$E$18*(1-IF($M101="ja",0.63,0))) -> 0 | E225: 0 | F225: =IF(B101="",0,IF($E$15<=5,0.005*C225*($E$14-8)*$E$15*4*12*(1-IF($M101="ja",0.63,0)),0.005*C225*(($E$14-8)*$E$15+($E$15-5)*16)*4*12*(1-IF($M101="ja",0.63,0)))) -> 0 | H225: 0 | J225: 71 | L225: 0 | M225: 0 | N225: 0 | P225: 0 | Q225: 0 | R225: 0 | T225: 0 | U225: Ja | W225: 0 | X225: 0 | Y225: 0 | Z225: 0 | AA225: 0 | AB225: 0 | AD225: 0 | AE225: 0
A226: 0 | B226: 0 | C226: 0 | D226: 0 | E226: 0 | F226: 0 | H226: 0 | J226: 72 | L226: 0 | M226: 0 | N226: 0 | P226: 0 | Q226: 0 | R226: 0 | T226: 0 | U226: Ja | W226: 0 | X226: 0 | Y226: 0 | Z226: 0 | AA226: 0 | AB226: 0 | AD226: 0 | AE226: 0
... 29 more rows

Sheet Ventilatorer (hidden)
A1: Ventilatorer
C3: Målt | E3: Oplyst | G3: Beregnet
A4: Signatur:
A6: Guide til målinger og registreringer til bestemmelse af ventilatorers elforbrug - Læs guide ved at trykke på billedikonet til højre for teksten →
Y12: antal aggregater
A13: ='Stinkskabe, LAF-bænke'!A14 -> Driftstimer pr. dag | F13: ='Stinkskabe, LAF-bænke'!E14 -> 10 | H13: ='Stinkskabe, LAF-bænke'!F14 -> timer pr. dag | K13: Guide | W13: 1 | X13: Nær sugeside | Y13: ='Stinkskabe, LAF-bænke'!AJ155 -> 1 | Z13: 1 | AA13: F-hjul
A14: ='Stinkskabe, LAF-bænke'!A15 -> Antal dage om ugen | F14: ='Stinkskabe, LAF-bænke'!E15 -> 7 | H14: ='Stinkskabe, LAF-bænke'!F15 -> dage pr. uge | W14: 2 | X14: Fjerneste punkt | Z14: 2 | AA14: B-hjul
A17: Skønnet tid hvor stinkskabene er fuldt åbne | F17: ='Stinkskabe, LAF-bænke'!E18 -> 0.3
A18: Skønnet tid hvor stinkskabene er lukkede | F18: ='Stinkskabe, LAF-bænke'!E19 -> 0.7
A40: Aggregat | B40: Ventilatortype | D40: Antal ventilatorer | E40: Trykføler placering | H40: Tryk efter ventilator | I40: Tryk før ventilator | J40: Tryk ved fjerneste punkt af kanalstrækning | K40: Tryk efter stinkskab | T40: Aktuelle forbrug | AH40: Tiltag: Alle tiltag
A41: Anlægsnr. | S41: Aggregatnr. | T41: Ventilatorplacering | U41: Ventilatortype | V41: Totalvirkningsgrad | W41: Luftmængde åbent | X41: Luftmængde lukket | Y41: Luftmængde uden for arbejdstiden | Z41: Målepunkt 1 | AA41: Målepunkt 2 | AB41: Trykdifferens | AC41: Energiforbrug | AF41: Aktuelle energiforbrug | AH41: Totalvirkningsgrad | AI41: Luftmængde åbent | AJ41: Luftmængde lukket | AK41: Luftmængde uden for arbejdstiden | AL41: Målepunkt 1 | AM41: Målepunkt 2 | AN41: Trykdifferens | AO41: Energiforbrug | AR41: Aktuelle energiforbrug
H42: (Målepunkt 1) | I42: (Målepunkt 2) | J42: (Målepunkt 3) | K42: (Målepunkt 4) | W42: [m3/h] | Z42: [Pa] | AC42: [kWh/år] | AF42: [kWh/år] | AI42: [m3/h] | AL42: [Pa] | AO42: [kWh/år] | AR42: [kWh/år]
A43: =IF(ISERROR(INDEX('Stinkskabe, LAF-bænke'!$A$31:$A$130,MATCH(1,'Stinkskabe, LAF-bænke'!$AE$155:$AE$254,0))),"",INDEX('Stinkskabe, LAF-bænke'!$A$31:$A$130,MATCH(1,'Stinkskabe, LAF-bænke'!$AE$155:$AE$254,0))) -> VE01 | B43: B-hjul | D43: 1 | E43: Nær sugeside | H43: 40 | I43: 100 | J43: 60 | K43: 40 | S43: =A43 -> VE01 | T43: =INDEX($W$13:$W$14,MATCH(E43,$X$13:$X$14,0)) -> 1 | U43: =INDEX($Z$13:$Z$14,MATCH(B43,$AA$13:$AA$14,0)) -> 2 | V43: =IF(U43=2,0.5,0.4) -> 0.5 | W43: =SUM(IF('Stinkskabe, LAF-bænke'!$AE$155:$AE$254=1,'Stinkskabe, LAF-bænke'!$A$155:$A$254)) -> 4500 | X43: =SUM(IF('Stinkskabe, LAF-bænke'!$AE$155:$AE$254=1,'Stinkskabe, LAF-bænke'!$B$155:$B$254)) -> 648 | Y43: =SUM(IF('Stinkskabe, LAF-bænke'!$AE$155:$AE$254=1,'Stinkskabe, LAF-bænke'!$C$155:$C$254)) -> 648 | Z43: =H43 -> 40 | AA43: =I43 -> 100 | AB43: =Z43+AA43 -> 140 | AC43: =W43/3600*AB43/V43*(IF($F$13>=8,8,$F$13))*$F$14*52*$F$17/1000 -> 305.76 | AD43: =X43/3600*AB43/V43*(IF($F$13>=8,8,$F$13))*$F$14*52*$F$18/1000 -> 102.73536 | AE43: =IF($F$14<=5,Y43/3600*AB43/V43*(IF($F$13<8,0,$F$13-8))*$F$14*52,Y43/3600*AB43/V43*24*($F$14-5)*52)/1000 -> 125.7984 | AF43: =(AC43+AD43+AE43)*D43 -> 534.29376 | AH43: 0.5 | AI43: =SUM(IF('Stinkskabe, LAF-bænke'!$AE$155:$AE$254=1,'Stinkskabe, LAF-bænke'!$W$155:$W$254)) -> 4500 | AJ43: =SUM(IF('Stinkskabe, LAF-bænke'!$AE$155:$AE$254=1,'Stinkskabe, LAF-bænke'!$X$155:$X$254)) -> 270 | AK43: =SUM(IF('Stinkskabe, LAF-bænke'!$AE$155:$AE$254=1,'Stinkskabe, LAF-bænke'!$Y$155:$Y$254)) -> 90 | AL43: =H43 -> 40 | AM43: =IF(T43=1,J43-(K43-40)+(I43-J43)*(AI43/W43)^2,AA43) -> 100 | AN43: =AL43+AM43 -> 140 | AO43: =IF(AH43="","",AI43/3600*AN43/AH43*(IF($F$13>=8,8,$F$13))*$F$14*52*$F$17/1000) -> 305.76 | AP43: =IF(AH43="","",AJ43/3600*AN43/AH43*(IF($F$13>=8,8,$F$13))*$F$14*52*$F$18/1000) -> 42.8064 | AQ43: =IF($F$14<=5,AK43/3600*AN43/AH43*(IF($F$13<8,0,$F$13-8))*$F$14*52,AK43/3600*AN43/AH43*24*($F$14-5)*52)/1000 -> 17.472 | AR43: =IF(AH43="","",(AO43+AP43+AQ43)*D43) -> 366.0384
A44: =IF(ISERROR(INDEX('Stinkskabe, LAF-bænke'!$A$31:$A$130,MATCH(2,'Stinkskabe, LAF-bænke'!$AE$155:$AE$254,0))),"",INDEX('Stinkskabe, LAF-bænke'!$A$31:$A$130,MATCH(2,'Stinkskabe, LAF-bænke'!$AE$155:$AE$254,0))) ->  | B44: B-hjul | D44: 2 | E44: Fjerneste punkt | H44: 40 | I44: 500 | J44: 150 | K44: 110 | S44: =A44 ->  | T44: =INDEX($W$13:$W$14,MATCH(E44,$X$13:$X$14,0)) -> 2 | U44: =INDEX($Z$13:$Z$14,MATCH(B44,$AA$13:$AA$14,0)) -> 2 | V44: =IF(U44=2,0.5,0.4) -> 0.5 | W44: =SUM(IF('Stinkskabe, LAF-bænke'!$AE$155:$AE$254=2,'Stinkskabe, LAF-bænke'!$A$155:$A$254)) -> 0 | X44: =SUM(IF('Stinkskabe, LAF-bænke'!$AE$155:$AE$254=2,'Stinkskabe, LAF-bænke'!$B$155:$B$254)) -> 0 | Y44: =SUM(IF('Stinkskabe, LAF-bænke'!$AE$155:$AE$254=2,'Stinkskabe, LAF-bænke'!$C$155:$C$254)) -> 0 | Z44: =H44 -> 40 | AA44: =I44 -> 500 | AB44: =Z44+AA44 -> 540 | AC44: =W44/3600*AB44/V44*(IF($F$13>=8,8,$F$13))*$F$14*52*$F$17/1000 -> 0 | AD44: =X44/3600*AB44/V44*(IF($F$13>=8,8,$F$13))*$F$14*52*$F$18/1000 -> 0 | AE44: =IF($F$14<=5,Y44/3600*AB44/V44*(IF($F$13<8,0,$F$13-8))*$F$14*52,Y44/3600*AB44/V44*24*($F$14-5)*52)/1000 -> 0 | AF44: =(AC44+AD44+AE44)*D44 -> 0 | AH44: 0.5 | AI44: =SUM(IF('Stinkskabe, LAF-bænke'!$AE$155:$AE$254=2,'Stinkskabe, LAF-bænke'!$W$155:$W$254)) -> 0 | AJ44: =SUM(IF('Stinkskabe, LAF-bænke'!$AE$155:$AE$254=2,'Stinkskabe, LAF-bænke'!$X$155:$X$254)) -> 0 | AK44: =SUM(IF('Stinkskabe, LAF-bænke'!$AE$155:$AE$254=2,'Stinkskabe, LAF-bænke'!$Y$155:$Y$254)) -> 0 | AL44: =H44 -> 40 | AM44: =IF(T44=1,J44-(K44-40)+(I44-J44)*(AI44/W44)^2,AA44) -> 500 | AN44: =AL44+AM44 -> 540 | AO44: =IF(AH44="","",AI44/3600*AN44/AH44*(IF($F$13>=8,8,$F$13))*$F$14*52*$F$17/1000) -> 0 | AP44: =IF(AH44="","",AJ44/3600*AN44/AH44*(IF($F$13>=8,8,$F$13))*$F$14*52*$F$18/1000) -> 0 | AQ44: =IF($F$14<=5,AK44/3600*AN44/AH44*(IF($F$13<8,0,$F$13-8))*$F$14*52,AK44/3600*AN44/AH44*24*($F$14-5)*52)/1000 -> 0 | AR44: =IF(AH44="","",(AO44+AP44+AQ44)*D44) -> 0
A45: =IF(ISERROR(INDEX('Stinkskabe, LAF-bænke'!$A$31:$A$130,MATCH(3,'Stinkskabe, LAF-bænke'!$AE$155:$AE$254,0))),"",INDEX('Stinkskabe, LAF-bænke'!$A$31:$A$130,MATCH(3,'Stinkskabe, LAF-bænke'!$AE$155:$AE$254,0))) ->  | B45: B-hjul | D45: 2 | E45: Fjerneste punkt | H45: 40 | I45: 500 | J45: 150 | K45: 110 | T45: 2 | U45: 2 | V45: 0.5 | W45: =SUM(IF('Stinkskabe, LAF-bænke'!$AE$155:$AE$254=3,'Stinkskabe, LAF-bænke'!$A$155:$A$254)) -> 0 | X45: =SUM(IF('Stinkskabe, LAF-bænke'!$AE$155:$AE$254=3,'Stinkskabe, LAF-bænke'!$B$155:$B$254)) -> 0 | Y45: =SUM(IF('Stinkskabe, LAF-bænke'!$AE$155:$AE$254=3,'Stinkskabe, LAF-bænke'!$C$155:$C$254)) -> 0 | Z45: 40 | AA45: 500 | AB45: 540 | AC45: 0 | AD45: 0 | AE45: 0 | AF45: 0 | AH45: 0.5 | AI45: =SUM(IF('Stinkskabe, LAF-bænke'!$AE$155:$AE$254=3,'Stinkskabe, LAF-bænke'!$W$155:$W$254)) -> 0 | AJ45: =SUM(IF('Stinkskabe, LAF-bænke'!$AE$155:$AE$254=3,'Stinkskabe, LAF-bænke'!$X$155:$X$254)) -> 0 | AK45: =SUM(IF('Stinkskabe, LAF-bænke'!$AE$155:$AE$254=3,'Stinkskabe, LAF-bænke'!$Y$155:$Y$254)) -> 0 | AL45: 40 | AM45: 500 | AN45: 540 | AO45: 0 | AP45: 0 | AQ45: 0 | AR45: 0
A46: =IF(ISERROR(INDEX('Stinkskabe, LAF-bænke'!$A$31:$A$130,MATCH(4,'Stinkskabe, LAF-bænke'!$AE$155:$AE$254,0))),"",INDEX('Stinkskabe, LAF-bænke'!$A$31:$A$130,MATCH(4,'Stinkskabe, LAF-bænke'!$AE$155:$AE$254,0))) ->  | B46: B-hjul | E46: Fjerneste punkt | T46: 2 | U46: 2 | V46: 0.5 | W46: =SUM(IF('Stinkskabe, LAF-bænke'!$AE$155:$AE$254=4,'Stinkskabe, LAF-bænke'!$A$155:$A$254)) -> 0 | X46: =SUM(IF('Stinkskabe, LAF-bænke'!$AE$155:$AE$254=4,'Stinkskabe, LAF-bænke'!$B$155:$B$254)) -> 0 | Y46: =SUM(IF('Stinkskabe, LAF-bænke'!$AE$155:$AE$254=4,'Stinkskabe, LAF-bænke'!$C$155:$C$254)) -> 0 | Z46: 0 | AA46: 0 | AB46: 0 | AC46: 0 | AD46: 0 | AE46: 0 | AF46: 0 | AH46: 0.5 | AI46: =SUM(IF('Stinkskabe, LAF-bænke'!$AE$155:$AE$254=4,'Stinkskabe, LAF-bænke'!$W$155:$W$254)) -> 0 | AJ46: =SUM(IF('Stinkskabe, LAF-bænke'!$AE$155:$AE$254=4,'Stinkskabe, LAF-bænke'!$X$155:$X$254)) -> 0 | AK46: =SUM(IF('Stinkskabe, LAF-bænke'!$AE$155:$AE$254=4,'Stinkskabe, LAF-bænke'!$Y$155:$Y$254)) -> 0 | AL46: 0 | AM46: 0 | AN46: 0 | AO46: 0 | AP46: 0 | AQ46: 0 | AR46: 0
A47: =IF(ISERROR(INDEX('Stinkskabe, LAF-bænke'!$A$31:$A$130,MATCH(5,'Stinkskabe, LAF-bænke'!$AE$155:$AE$254,0))),"",INDEX('Stinkskabe, LAF-bænke'!$A$31:$A$130,MATCH(5,'Stinkskabe, LAF-bænke'!$AE$155:$AE$254,0))) ->  | B47: B-hjul | E47: Fjerneste punkt | T47: 2 | U47: 2 | V47: 0.5 | W47: =SUM(IF('Stinkskabe, LAF-bænke'!$AE$155:$AE$254=5,'Stinkskabe, LAF-bænke'!$A$155:$A$254)) -> 0 | X47: =SUM(IF('Stinkskabe, LAF-bænke'!$AE$155:$AE$254=5,'Stinkskabe, LAF-bænke'!$B$155:$B$254)) -> 0 | Y47: =SUM(IF('Stinkskabe, LAF-bænke'!$AE$155:$AE$254=5,'Stinkskabe, LAF-bænke'!$C$155:$C$254)) -> 0 | Z47: 0 | AA47: 0 | AB47: 0 | AC47: 0 | AD47: 0 | AE47: 0 | AF47: 0 | AH47: 0.5 | AI47: =SUM(IF('Stinkskabe, LAF-bænke'!$AE$155:$AE$254=5,'Stinkskabe, LAF-bænke'!$W$155:$W$254)) -> 0 | AJ47: =SUM(IF('Stinkskabe, LAF-bænke'!$AE$155:$AE$254=5,'Stinkskabe, LAF-bænke'!$X$155:$X$254)) -> 0 | AK47: =SUM(IF('Stinkskabe, LAF-bænke'!$AE$155:$AE$254=5,'Stinkskabe, LAF-bænke'!$Y$155:$Y$254)) -> 0 | AL47: 0 | AM47: 0 | AN47: 0 | AO47: 0 | AP47: 0 | AQ47: 0 | AR47: 0
A48: =IF(ISERROR(INDEX('Stinkskabe, LAF-bænke'!$A$31:$A$130,MATCH(6,'Stinkskabe, LAF-bænke'!$AE$155:$AE$254,0))),"",INDEX('Stinkskabe, LAF-bænke'!$A$31:$A$130,MATCH(6,'Stinkskabe, LAF-bænke'!$AE$155:$AE$254,0))) ->  | B48: B-hjul | E48: Fjerneste punkt | T48: 2 | U48: 2 | V48: 0.5 | W48: =SUM(IF('Stinkskabe, LAF-bænke'!$AE$155:$AE$254=6,'Stinkskabe, LAF-bænke'!$A$155:$A$254)) -> 0 | X48: =SUM(IF('Stinkskabe, LAF-bænke'!$AE$155:$AE$254=6,'Stinkskabe, LAF-bænke'!$B$155:$B$254)) -> 0 | Y48: =SUM(IF('Stinkskabe, LAF-bænke'!$AE$155:$AE$254=6,'Stinkskabe, LAF-bænke'!$C$155:$C$254)) -> 0 | Z48: 0 | AA48: 0 | AB48: 0 | AC48: 0 | AD48: 0 | AE48: 0 | AF48: 0 | AH48: 0.5 | AI48: =SUM(IF('Stinkskabe, LAF-bænke'!$AE$155:$AE$254=6,'Stinkskabe, LAF-bænke'!$W$155:$W$254)) -> 0 | AJ48: =SUM(IF('Stinkskabe, LAF-bænke'!$AE$155:$AE$254=6,'Stinkskabe, LAF-bænke'!$X$155:$X$254)) -> 0 | AK48: =SUM(IF('Stinkskabe, LAF-bænke'!$AE$155:$AE$254=6,'Stinkskabe, LAF-bænke'!$Y$155:$Y$254)) -> 0 | AL48: 0 | AM48: 0 | AN48: 0 | AO48: 0 | AP48: 0 | AQ48: 0 | AR48: 0
A49: =IF(ISERROR(INDEX('Stinkskabe, LAF-bænke'!$A$31:$A$130,MATCH(7,'Stinkskabe, LAF-bænke'!$AE$155:$AE$254,0))),"",INDEX('Stinkskabe, LAF-bænke'!$A$31:$A$130,MATCH(7,'Stinkskabe, LAF-bænke'!$AE$155:$AE$254,0))) ->  | B49: B-hjul | E49: Fjerneste punkt | T49: 2 | U49: 2 | V49: 0.5 | W49: =SUM(IF('Stinkskabe, LAF-bænke'!$AE$155:$AE$254=7,'Stinkskabe, LAF-bænke'!$A$155:$A$254)) -> 0 | X49: =SUM(IF('Stinkskabe, LAF-bænke'!$AE$155:$AE$254=7,'Stinkskabe, LAF-bænke'!$B$155:$B$254)) -> 0 | Y49: =SUM(IF('Stinkskabe, LAF-bænke'!$AE$155:$AE$254=7,'Stinkskabe, LAF-bænke'!$C$155:$C$254)) -> 0 | Z49: 0 | AA49: 0 | AB49: 0 | AC49: 0 | AD49: 0 | AE49: 0 | AF49: 0 | AH49: 0.5 | AI49: =SUM(IF('Stinkskabe, LAF-bænke'!$AE$155:$AE$254=7,'Stinkskabe, LAF-bænke'!$W$155:$W$254)) -> 0 | AJ49: =SUM(IF('Stinkskabe, LAF-bænke'!$AE$155:$AE$254=7,'Stinkskabe, LAF-bænke'!$X$155:$X$254)) -> 0 | AK49: =SUM(IF('Stinkskabe, LAF-bænke'!$AE$155:$AE$254=7,'Stinkskabe, LAF-bænke'!$Y$155:$Y$254)) -> 0 | AL49: =H49 -> 0 | AM49: =IF(T49=1,J49-(K49-40)+(I49-J49)*(AI49/W49)^2,AA49) -> 0 | AN49: =AL49+AM49 -> 0 | AO49: 0 | AP49: 0 | AQ49: 0 | AR49: 0
A50: =IF(ISERROR(INDEX('Stinkskabe, LAF-bænke'!$A$31:$A$130,MATCH(8,'Stinkskabe, LAF-bænke'!$AE$155:$AE$254,0))),"",INDEX('Stinkskabe, LAF-bænke'!$A$31:$A$130,MATCH(8,'Stinkskabe, LAF-bænke'!$AE$155:$AE$254,0))) ->  | B50: B-hjul | E50: Fjerneste punkt | T50: 2 | U50: 2 | V50: 0.5 | W50: =SUM(IF('Stinkskabe, LAF-bænke'!$AE$155:$AE$254=8,'Stinkskabe, LAF-bænke'!$A$155:$A$254)) -> 0 | X50: =SUM(IF('Stinkskabe, LAF-bænke'!$AE$155:$AE$254=8,'Stinkskabe, LAF-bænke'!$B$155:$B$254)) -> 0 | Y50: =SUM(IF('Stinkskabe, LAF-bænke'!$AE$155:$AE$254=8,'Stinkskabe, LAF-bænke'!$C$155:$C$254)) -> 0 | Z50: 0 | AA50: 0 | AB50: 0 | AC50: 0 | AD50: 0 | AE50: 0 | AF50: 0 | AH50: 0.5 | AI50: =SUM(IF('Stinkskabe, LAF-bænke'!$AE$155:$AE$254=8,'Stinkskabe, LAF-bænke'!$W$155:$W$254)) -> 0 | AJ50: =SUM(IF('Stinkskabe, LAF-bænke'!$AE$155:$AE$254=8,'Stinkskabe, LAF-bænke'!$X$155:$X$254)) -> 0 | AK50: =SUM(IF('Stinkskabe, LAF-bænke'!$AE$155:$AE$254=8,'Stinkskabe, LAF-bænke'!$Y$155:$Y$254)) -> 0 | AL50: 0 | AM50: 0 | AN50: 0 | AO50: 0 | AP50: 0 | AQ50: 0 | AR50: 0
A51: =IF(ISERROR(INDEX('Stinkskabe, LAF-bænke'!$A$31:$A$130,MATCH(9,'Stinkskabe, LAF-bænke'!$AE$155:$AE$254,0))),"",INDEX('Stinkskabe, LAF-bænke'!$A$31:$A$130,MATCH(9,'Stinkskabe, LAF-bænke'!$AE$155:$AE$254,0))) ->  | B51: B-hjul | E51: Fjerneste punkt | T51: 2 | U51: 2 | V51: 0.5 | W51: =SUM(IF('Stinkskabe, LAF-bænke'!$AE$155:$AE$254=9,'Stinkskabe, LAF-bænke'!$A$155:$A$254)) -> 0 | X51: =SUM(IF('Stinkskabe, LAF-bænke'!$AE$155:$AE$254=9,'Stinkskabe, LAF-bænke'!$B$155:$B$254)) -> 0 | Y51: =SUM(IF('Stinkskabe, LAF-bænke'!$AE$155:$AE$254=9,'Stinkskabe, LAF-bænke'!$C$155:$C$254)) -> 0 | Z51: 0 | AA51: 0 | AB51: 0 | AC51: 0 | AD51: 0 | AE51: 0 | AF51: 0 | AH51: 0.5 | AI51: =SUM(IF('Stinkskabe, LAF-bænke'!$AE$155:$AE$254=9,'Stinkskabe, LAF-bænke'!$W$155:$W$254)) -> 0 | AJ51: =SUM(IF('Stinkskabe, LAF-bænke'!$AE$155:$AE$254=9,'Stinkskabe, LAF-bænke'!$X$155:$X$254)) -> 0 | AK51: =SUM(IF('Stinkskabe, LAF-bænke'!$AE$155:$AE$254=9,'Stinkskabe, LAF-bænke'!$Y$155:$Y$254)) -> 0 | AL51: 0 | AM51: 0 | AN51: 0 | AO51: 0 | AP51: 0 | AQ51: 0 | AR51: 0
A52: =IF(ISERROR(INDEX('Stinkskabe, LAF-bænke'!$A$31:$A$130,MATCH(10,'Stinkskabe, LAF-bænke'!$AE$155:$AE$254,0))),"",INDEX('Stinkskabe, LAF-bænke'!$A$31:$A$130,MATCH(10,'Stinkskabe, LAF-bænke'!$AE$155:$AE$254,0))) ->  | B52: B-hjul | E52: Fjerneste punkt | T52: 2 | U52: 2 | V52: 0.5 | W52: =SUM(IF('Stinkskabe, LAF-bænke'!$AE$155:$AE$254=10,'Stinkskabe, LAF-bænke'!$A$155:$A$254)) -> 0 | X52: =SUM(IF('Stinkskabe, LAF-bænke'!$AE$155:$AE$254=10,'Stinkskabe, LAF-bænke'!$B$155:$B$254)) -> 0 | Y52: =SUM(IF('Stinkskabe, LAF-bænke'!$AE$155:$AE$254=10,'Stinkskabe, LAF-bænke'!$C$155:$C$254)) -> 0 | Z52: 0 | AA52: 0 | AB52: 0 | AC52: 0 | AD52: 0 | AE52: 0 | AF52: 0 | AH52: 0.5 | AI52: =SUM(IF('Stinkskabe, LAF-bænke'!$AE$155:$AE$254=10,'Stinkskabe, LAF-bænke'!$W$155:$W$254)) -> 0 | AJ52: =SUM(IF('Stinkskabe, LAF-bænke'!$AE$155:$AE$254=10,'Stinkskabe, LAF-bænke'!$X$155:$X$254)) -> 0 | AK52: =SUM(IF('Stinkskabe, LAF-bænke'!$AE$155:$AE$254=10,'Stinkskabe, LAF-bænke'!$Y$155:$Y$254)) -> 0 | AL52: 0 | AM52: 0 | AN52: 0 | AO52: 0 | AP52: 0 | AQ52: 0 | AR52: 0
A53: =IF(ISERROR(INDEX('Stinkskabe, LAF-bænke'!$A$31:$A$130,MATCH(11,'Stinkskabe, LAF-bænke'!$AE$155:$AE$254,0))),"",INDEX('Stinkskabe, LAF-bænke'!$A$31:$A$130,MATCH(11,'Stinkskabe, LAF-bænke'!$AE$155:$AE$254,0))) ->  | B53: B-hjul | E53: Fjerneste punkt | T53: 2 | U53: 2 | V53: 0.5 | W53: =SUM(IF('Stinkskabe, LAF-bænke'!$AE$155:$AE$254=11,'Stinkskabe, LAF-bænke'!$A$155:$A$254)) -> 0 | X53: =SUM(IF('Stinkskabe, LAF-bænke'!$AE$155:$AE$254=11,'Stinkskabe, LAF-bænke'!$B$155:$B$254)) -> 0 | Y53: =SUM(IF('Stinkskabe, LAF-bænke'!$AE$155:$AE$254=11,'Stinkskabe, LAF-bænke'!$C$155:$C$254)) -> 0 | Z53: 0 | AA53: 0 | AB53: 0 | AC53: 0 | AD53: 0 | AE53: 0 | AF53: 0 | AH53: 0.5 | AI53: =SUM(IF('Stinkskabe, LAF-bænke'!$AE$155:$AE$254=11,'Stinkskabe, LAF-bænke'!$W$155:$W$254)) -> 0 | AJ53: =SUM(IF('Stinkskabe, LAF-bænke'!$AE$155:$AE$254=11,'Stinkskabe, LAF-bænke'!$X$155:$X$254)) -> 0 | AK53: =SUM(IF('Stinkskabe, LAF-bænke'!$AE$155:$AE$254=11,'Stinkskabe, LAF-bænke'!$Y$155:$Y$254)) -> 0 | AL53: 0 | AM53: 0 | AN53: 0 | AO53: 0 | AP53: 0 | AQ53: 0 | AR53: 0
A54: =IF(ISERROR(INDEX('Stinkskabe, LAF-bænke'!$A$31:$A$130,MATCH(12,'Stinkskabe, LAF-bænke'!$AE$155:$AE$254,0))),"",INDEX('Stinkskabe, LAF-bænke'!$A$31:$A$130,MATCH(12,'Stinkskabe, LAF-bænke'!$AE$155:$AE$254,0))) ->  | B54: B-hjul | E54: Fjerneste punkt | T54: 2 | U54: 2 | V54: 0.5 | W54: =SUM(IF('Stinkskabe, LAF-bænke'!$AE$155:$AE$254=12,'Stinkskabe, LAF-bænke'!$A$155:$A$254)) -> 0 | X54: =SUM(IF('Stinkskabe, LAF-bænke'!$AE$155:$AE$254=12,'Stinkskabe, LAF-bænke'!$B$155:$B$254)) -> 0 | Y54: =SUM(IF('Stinkskabe, LAF-bænke'!$AE$155:$AE$254=12,'Stinkskabe, LAF-bænke'!$C$155:$C$254)) -> 0 | Z54: 0 | AA54: 0 | AB54: 0 | AC54: 0 | AD54: 0 | AE54: 0 | AF54: 0 | AH54: 0.5 | AI54: =SUM(IF('Stinkskabe, LAF-bænke'!$AE$155:$AE$254=12,'Stinkskabe, LAF-bænke'!$W$155:$W$254)) -> 0 | AJ54: =SUM(IF('Stinkskabe, LAF-bænke'!$AE$155:$AE$254=12,'Stinkskabe, LAF-bænke'!$X$155:$X$254)) -> 0 | AK54: =SUM(IF('Stinkskabe, LAF-bænke'!$AE$155:$AE$254=12,'Stinkskabe, LAF-bænke'!$Y$155:$Y$254)) -> 0 | AL54: 0 | AM54: 0 | AN54: 0 | AO54: 0 | AP54: 0 | AQ54: 0 | AR54: 0
A55: =IF(ISERROR(INDEX('Stinkskabe, LAF-bænke'!$A$31:$A$130,MATCH(13,'Stinkskabe, LAF-bænke'!$AE$155:$AE$254,0))),"",INDEX('Stinkskabe, LAF-bænke'!$A$31:$A$130,MATCH(13,'Stinkskabe, LAF-bænke'!$AE$155:$AE$254,0))) ->  | B55: B-hjul | E55: Fjerneste punkt | T55: 2 | U55: 2 | V55: 0.5 | W55: =SUM(IF('Stinkskabe, LAF-bænke'!$AE$155:$AE$254=13,'Stinkskabe, LAF-bænke'!$A$155:$A$254)) -> 0 | X55: =SUM(IF('Stinkskabe, LAF-bænke'!$AE$155:$AE$254=13,'Stinkskabe, LAF-bænke'!$B$155:$B$254)) -> 0 | Y55: =SUM(IF('Stinkskabe, LAF-bænke'!$AE$155:$AE$254=13,'Stinkskabe, LAF-bænke'!$C$155:$C$254)) -> 0 | Z55: 0 | AA55: 0 | AB55: 0 | AC55: 0 | AD55: 0 | AE55: 0 | AF55: 0 | AH55: 0.5 | AI55: =SUM(IF('Stinkskabe, LAF-bænke'!$AE$155:$AE$254=13,'Stinkskabe, LAF-bænke'!$W$155:$W$254)) -> 0 | AJ55: =SUM(IF('Stinkskabe, LAF-bænke'!$AE$155:$AE$254=13,'Stinkskabe, LAF-bænke'!$X$155:$X$254)) -> 0 | AK55: =SUM(IF('Stinkskabe, LAF-bænke'!$AE$155:$AE$254=13,'Stinkskabe, LAF-bænke'!$Y$155:$Y$254)) -> 0 | AL55: 0 | AM55: 0 | AN55: 0 | AO55: 0 | AP55: 0 | AQ55: 0 | AR55: 0
A56: =IF(ISERROR(INDEX('Stinkskabe, LAF-bænke'!$A$31:$A$130,MATCH(14,'Stinkskabe, LAF-bænke'!$AE$155:$AE$254,0))),"",INDEX('Stinkskabe, LAF-bænke'!$A$31:$A$130,MATCH(14,'Stinkskabe, LAF-bænke'!$AE$155:$AE$254,0))) ->  | B56: B-hjul | E56: Fjerneste punkt | T56: 2 | U56: 2 | V56: 0.5 | W56: =SUM(IF('Stinkskabe, LAF-bænke'!$AE$155:$AE$254=14,'Stinkskabe, LAF-bænke'!$A$155:$A$254)) -> 0 | X56: =SUM(IF('Stinkskabe, LAF-bænke'!$AE$155:$AE$254=14,'Stinkskabe, LAF-bænke'!$B$155:$B$254)) -> 0 | Y56: =SUM(IF('Stinkskabe, LAF-bænke'!$AE$155:$AE$254=14,'Stinkskabe, LAF-bænke'!$C$155:$C$254)) -> 0 | Z56: 0 | AA56: 0 | AB56: 0 | AC56: 0 | AD56: 0 | AE56: 0 | AF56: 0 | AH56: 0.5 | AI56: =SUM(IF('Stinkskabe, LAF-bænke'!$AE$155:$AE$254=14,'Stinkskabe, LAF-bænke'!$W$155:$W$254)) -> 0 | AJ56: =SUM(IF('Stinkskabe, LAF-bænke'!$AE$155:$AE$254=14,'Stinkskabe, LAF-bænke'!$X$155:$X$254)) -> 0 | AK56: =SUM(IF('Stinkskabe, LAF-bænke'!$AE$155:$AE$254=14,'Stinkskabe, LAF-bænke'!$Y$155:$Y$254)) -> 0 | AL56: 0 | AM56: 0 | AN56: 0 | AO56: 0 | AP56: 0 | AQ56: 0 | AR56: 0
A57: =IF(ISERROR(INDEX('Stinkskabe, LAF-bænke'!$A$31:$A$130,MATCH(15,'Stinkskabe, LAF-bænke'!$AE$155:$AE$254,0))),"",INDEX('Stinkskabe, LAF-bænke'!$A$31:$A$130,MATCH(15,'Stinkskabe, LAF-bænke'!$AE$155:$AE$254,0))) ->  | B57: B-hjul | E57: Fjerneste punkt | T57: 2 | U57: 2 | V57: 0.5 | W57: =SUM(IF('Stinkskabe, LAF-bænke'!$AE$155:$AE$254=15,'Stinkskabe, LAF-bænke'!$A$155:$A$254)) -> 0 | X57: =SUM(IF('Stinkskabe, LAF-bænke'!$AE$155:$AE$254=15,'Stinkskabe, LAF-bænke'!$B$155:$B$254)) -> 0 | Y57: =SUM(IF('Stinkskabe, LAF-bænke'!$AE$155:$AE$254=15,'Stinkskabe, LAF-bænke'!$C$155:$C$254)) -> 0 | Z57: 0 | AA57: 0 | AB57: 0 | AC57: 0 | AD57: 0 | AE57: 0 | AF57: 0 | AH57: 0.5 | AI57: =SUM(IF('Stinkskabe, LAF-bænke'!$AE$155:$AE$254=15,'Stinkskabe, LAF-bænke'!$W$155:$W$254)) -> 0 | AJ57: =SUM(IF('Stinkskabe, LAF-bænke'!$AE$155:$AE$254=15,'Stinkskabe, LAF-bænke'!$X$155:$X$254)) -> 0 | AK57: =SUM(IF('Stinkskabe, LAF-bænke'!$AE$155:$AE$254=15,'Stinkskabe, LAF-bænke'!$Y$155:$Y$254)) -> 0 | AL57: 0 | AM57: 0 | AN57: 0 | AO57: 0 | AP57: 0 | AQ57: 0 | AR57: 0
A58: =IF(ISERROR(INDEX('Stinkskabe, LAF-bænke'!$A$31:$A$130,MATCH(16,'Stinkskabe, LAF-bænke'!$AE$155:$AE$254,0))),"",INDEX('Stinkskabe, LAF-bænke'!$A$31:$A$130,MATCH(16,'Stinkskabe, LAF-bænke'!$AE$155:$AE$254,0))) ->  | B58: B-hjul | E58: Fjerneste punkt | T58: 2 | U58: 2 | V58: 0.5 | W58: =SUM(IF('Stinkskabe, LAF-bænke'!$AE$155:$AE$254=16,'Stinkskabe, LAF-bænke'!$A$155:$A$254)) -> 0 | X58: =SUM(IF('Stinkskabe, LAF-bænke'!$AE$155:$AE$254=16,'Stinkskabe, LAF-bænke'!$B$155:$B$254)) -> 0 | Y58: =SUM(IF('Stinkskabe, LAF-bænke'!$AE$155:$AE$254=16,'Stinkskabe, LAF-bænke'!$C$155:$C$254)) -> 0 | Z58: 0 | AA58: 0 | AB58: 0 | AC58: 0 | AD58: 0 | AE58: 0 | AF58: 0 | AH58: 0.5 | AI58: =SUM(IF('Stinkskabe, LAF-bænke'!$AE$155:$AE$254=16,'Stinkskabe, LAF-bænke'!$W$155:$W$254)) -> 0 | AJ58: =SUM(IF('Stinkskabe, LAF-bænke'!$AE$155:$AE$254=16,'Stinkskabe, LAF-bænke'!$X$155:$X$254)) -> 0 | AK58: =SUM(IF('Stinkskabe, LAF-bænke'!$AE$155:$AE$254=16,'Stinkskabe, LAF-bænke'!$Y$155:$Y$254)) -> 0 | AL58: 0 | AM58: 0 | AN58: 0 | AO58: 0 | AP58: 0 | AQ58: 0 | AR58: 0
A59: =IF(ISERROR(INDEX('Stinkskabe, LAF-bænke'!$A$31:$A$130,MATCH(17,'Stinkskabe, LAF-bænke'!$AE$155:$AE$254,0))),"",INDEX('Stinkskabe, LAF-bænke'!$A$31:$A$130,MATCH(17,'Stinkskabe, LAF-bænke'!$AE$155:$AE$254,0))) ->  | B59: B-hjul | E59: Fjerneste punkt | T59: 2 | U59: 2 | V59: 0.5 | W59: =SUM(IF('Stinkskabe, LAF-bænke'!$AE$155:$AE$254=17,'Stinkskabe, LAF-bænke'!$A$155:$A$254)) -> 0 | X59: =SUM(IF('Stinkskabe, LAF-bænke'!$AE$155:$AE$254=17,'Stinkskabe, LAF-bænke'!$B$155:$B$254)) -> 0 | Y59: =SUM(IF('Stinkskabe, LAF-bænke'!$AE$155:$AE$254=17,'Stinkskabe, LAF-bænke'!$C$155:$C$254)) -> 0 | Z59: 0 | AA59: 0 | AB59: 0 | AC59: 0 | AD59: 0 | AE59: 0 | AF59: 0 | AH59: 0.5 | AI59: =SUM(IF('Stinkskabe, LAF-bænke'!$AE$155:$AE$254=17,'Stinkskabe, LAF-bænke'!$W$155:$W$254)) -> 0 | AJ59: =SUM(IF('Stinkskabe, LAF-bænke'!$AE$155:$AE$254=17,'Stinkskabe, LAF-bænke'!$X$155:$X$254)) -> 0 | AK59: =SUM(IF('Stinkskabe, LAF-bænke'!$AE$155:$AE$254=17,'Stinkskabe, LAF-bænke'!$Y$155:$Y$254)) -> 0 | AL59: 0 | AM59: 0 | AN59: 0 | AO59: 0 | AP59: 0 | AQ59: 0 | AR59: 0
A60: =IF(ISERROR(INDEX('Stinkskabe, LAF-bænke'!$A$31:$A$130,MATCH(18,'Stinkskabe, LAF-bænke'!$AE$155:$AE$254,0))),"",INDEX('Stinkskabe, LAF-bænke'!$A$31:$A$130,MATCH(18,'Stinkskabe, LAF-bænke'!$AE$155:$AE$254,0))) ->  | B60: B-hjul | E60: Fjerneste punkt | T60: 2 | U60: 2 | V60: 0.5 | W60: =SUM(IF('Stinkskabe, LAF-bænke'!$AE$155:$AE$254=18,'Stinkskabe, LAF-bænke'!$A$155:$A$254)) -> 0 | X60: =SUM(IF('Stinkskabe, LAF-bænke'!$AE$155:$AE$254=18,'Stinkskabe, LAF-bænke'!$B$155:$B$254)) -> 0 | Y60: =SUM(IF('Stinkskabe, LAF-bænke'!$AE$155:$AE$254=18,'Stinkskabe, LAF-bænke'!$C$155:$C$254)) -> 0 | Z60: 0 | AA60: 0 | AB60: 0 | AC60: 0 | AD60: 0 | AE60: 0 | AF60: 0 | AH60: 0.5 | AI60: =SUM(IF('Stinkskabe, LAF-bænke'!$AE$155:$AE$254=18,'Stinkskabe, LAF-bænke'!$W$155:$W$254)) -> 0 | AJ60: =SUM(IF('Stinkskabe, LAF-bænke'!$AE$155:$AE$254=18,'Stinkskabe, LAF-bænke'!$X$155:$X$254)) -> 0 | AK60: =SUM(IF('Stinkskabe, LAF-bænke'!$AE$155:$AE$254=18,'Stinkskabe, LAF-bænke'!$Y$155:$Y$254)) -> 0 | AL60: 0 | AM60: 0 | AN60: 0 | AO60: 0 | AP60: 0 | AQ60: 0 | AR60: 0
A61: =IF(ISERROR(INDEX('Stinkskabe, LAF-bænke'!$A$31:$A$130,MATCH(19,'Stinkskabe, LAF-bænke'!$AE$155:$AE$254,0))),"",INDEX('Stinkskabe, LAF-bænke'!$A$31:$A$130,MATCH(19,'Stinkskabe, LAF-bænke'!$AE$155:$AE$254,0))) ->  | B61: B-hjul | E61: Fjerneste punkt | T61: 2 | U61: 2 | V61: 0.5 | W61: =SUM(IF('Stinkskabe, LAF-bænke'!$AE$155:$AE$254=19,'Stinkskabe, LAF-bænke'!$A$155:$A$254)) -> 0 | X61: =SUM(IF('Stinkskabe, LAF-bænke'!$AE$155:$AE$254=19,'Stinkskabe, LAF-bænke'!$B$155:$B$254)) -> 0 | Y61: =SUM(IF('Stinkskabe, LAF-bænke'!$AE$155:$AE$254=19,'Stinkskabe, LAF-bænke'!$C$155:$C$254)) -> 0 | Z61: 0 | AA61: 0 | AB61: 0 | AC61: 0 | AD61: 0 | AE61: 0 | AF61: 0 | AH61: 0.5 | AI61: =SUM(IF('Stinkskabe, LAF-bænke'!$AE$155:$AE$254=19,'Stinkskabe, LAF-bænke'!$W$155:$W$254)) -> 0 | AJ61: =SUM(IF('Stinkskabe, LAF-bænke'!$AE$155:$AE$254=19,'Stinkskabe, LAF-bænke'!$X$155:$X$254)) -> 0 | AK61: =SUM(IF('Stinkskabe, LAF-bænke'!$AE$155:$AE$254=19,'Stinkskabe, LAF-bænke'!$Y$155:$Y$254)) -> 0 | AL61: 0 | AM61: 0 | AN61: 0 | AO61: 0 | AP61: 0 | AQ61: 0 | AR61: 0
A62: =IF(ISERROR(INDEX('Stinkskabe, LAF-bænke'!$A$31:$A$130,MATCH(20,'Stinkskabe, LAF-bænke'!$AE$155:$AE$254,0))),"",INDEX('Stinkskabe, LAF-bænke'!$A$31:$A$130,MATCH(20,'Stinkskabe, LAF-bænke'!$AE$155:$AE$254,0))) ->  | B62: B-hjul | E62: Fjerneste punkt | T62: 2 | U62: 2 | V62: 0.5 | W62: =SUM(IF('Stinkskabe, LAF-bænke'!$AE$155:$AE$254=20,'Stinkskabe, LAF-bænke'!$A$155:$A$254)) -> 0 | X62: =SUM(IF('Stinkskabe, LAF-bænke'!$AE$155:$AE$254=20,'Stinkskabe, LAF-bænke'!$B$155:$B$254)) -> 0 | Y62: =SUM(IF('Stinkskabe, LAF-bænke'!$AE$155:$AE$254=20,'Stinkskabe, LAF-bænke'!$C$155:$C$254)) -> 0 | Z62: 0 | AA62: 0 | AB62: 0 | AC62: 0 | AD62: 0 | AE62: 0 | AF62: 0 | AH62: 0.5 | AI62: =SUM(IF('Stinkskabe, LAF-bænke'!$AE$155:$AE$254=20,'Stinkskabe, LAF-bænke'!$W$155:$W$254)) -> 0 | AJ62: =SUM(IF('Stinkskabe, LAF-bænke'!$AE$155:$AE$254=20,'Stinkskabe, LAF-bænke'!$X$155:$X$254)) -> 0 | AK62: =SUM(IF('Stinkskabe, LAF-bænke'!$AE$155:$AE$254=20,'Stinkskabe, LAF-bænke'!$Y$155:$Y$254)) -> 0 | AL62: 0 | AM62: 0 | AN62: 0 | AO62: 0 | AP62: 0 | AQ62: 0 | AR62: 0
A63: =IF(ISERROR(INDEX('Stinkskabe, LAF-bænke'!$A$31:$A$130,MATCH(21,'Stinkskabe, LAF-bænke'!$AE$155:$AE$254,0))),"",INDEX('Stinkskabe, LAF-bænke'!$A$31:$A$130,MATCH(21,'Stinkskabe, LAF-bænke'!$AE$155:$AE$254,0))) ->  | B63: B-hjul | E63: Fjerneste punkt | T63: 2 | U63: 2 | V63: 0.5 | W63: =SUM(IF('Stinkskabe, LAF-bænke'!$AE$155:$AE$254=21,'Stinkskabe, LAF-bænke'!$A$155:$A$254)) -> 0 | X63: =SUM(IF('Stinkskabe, LAF-bænke'!$AE$155:$AE$254=21,'Stinkskabe, LAF-bænke'!$B$155:$B$254)) -> 0 | Y63: =SUM(IF('Stinkskabe, LAF-bænke'!$AE$155:$AE$254=21,'Stinkskabe, LAF-bænke'!$C$155:$C$254)) -> 0 | Z63: 0 | AA63: 0 | AB63: 0 | AC63: 0 | AD63: 0 | AE63: 0 | AF63: 0 | AH63: 0.5 | AI63: =SUM(IF('Stinkskabe, LAF-bænke'!$AE$155:$AE$254=21,'Stinkskabe, LAF-bænke'!$W$155:$W$254)) -> 0 | AJ63: =SUM(IF('Stinkskabe, LAF-bænke'!$AE$155:$AE$254=21,'Stinkskabe, LAF-bænke'!$X$155:$X$254)) -> 0 | AK63: =SUM(IF('Stinkskabe, LAF-bænke'!$AE$155:$AE$254=21,'Stinkskabe, LAF-bænke'!$Y$155:$Y$254)) -> 0 | AL63: 0 | AM63: 0 | AN63: 0 | AO63: 0 | AP63: 0 | AQ63: 0 | AR63: 0
A64: =IF(ISERROR(INDEX('Stinkskabe, LAF-bænke'!$A$31:$A$130,MATCH(22,'Stinkskabe, LAF-bænke'!$AE$155:$AE$254,0))),"",INDEX('Stinkskabe, LAF-bænke'!$A$31:$A$130,MATCH(22,'Stinkskabe, LAF-bænke'!$AE$155:$AE$254,0))) ->  | B64: B-hjul | E64: Fjerneste punkt | T64: 2 | U64: 2 | V64: 0.5 | W64: =SUM(IF('Stinkskabe, LAF-bænke'!$AE$155:$AE$254=22,'Stinkskabe, LAF-bænke'!$A$155:$A$254)) -> 0 | X64: =SUM(IF('Stinkskabe, LAF-bænke'!$AE$155:$AE$254=22,'Stinkskabe, LAF-bænke'!$B$155:$B$254)) -> 0 | Y64: =SUM(IF('Stinkskabe, LAF-bænke'!$AE$155:$AE$254=22,'Stinkskabe, LAF-bænke'!$C$155:$C$254)) -> 0 | Z64: 0 | AA64: 0 | AB64: 0 | AC64: 0 | AD64: 0 | AE64: 0 | AF64: 0 | AH64: 0.5 | AI64: =SUM(IF('Stinkskabe, LAF-bænke'!$AE$155:$AE$254=22,'Stinkskabe, LAF-bænke'!$W$155:$W$254)) -> 0 | AJ64: =SUM(IF('Stinkskabe, LAF-bænke'!$AE$155:$AE$254=22,'Stinkskabe, LAF-bænke'!$X$155:$X$254)) -> 0 | AK64: =SUM(IF('Stinkskabe, LAF-bænke'!$AE$155:$AE$254=22,'Stinkskabe, LAF-bænke'!$Y$155:$Y$254)) -> 0 | AL64: 0 | AM64: 0 | AN64: 0 | AO64: 0 | AP64: 0 | AQ64: 0 | AR64: 0
A65: =IF(ISERROR(INDEX('Stinkskabe, LAF-bænke'!$A$31:$A$130,MATCH(23,'Stinkskabe, LAF-bænke'!$AE$155:$AE$254,0))),"",INDEX('Stinkskabe, LAF-bænke'!$A$31:$A$130,MATCH(23,'Stinkskabe, LAF-bænke'!$AE$155:$AE$254,0))) ->  | B65: B-hjul | E65: Fjerneste punkt | T65: 2 | U65: 2 | V65: 0.5 | W65: =SUM(IF('Stinkskabe, LAF-bænke'!$AE$155:$AE$254=23,'Stinkskabe, LAF-bænke'!$A$155:$A$254)) -> 0 | X65: =SUM(IF('Stinkskabe, LAF-bænke'!$AE$155:$AE$254=23,'Stinkskabe, LAF-bænke'!$B$155:$B$254)) -> 0 | Y65: =SUM(IF('Stinkskabe, LAF-bænke'!$AE$155:$AE$254=23,'Stinkskabe, LAF-bænke'!$C$155:$C$254)) -> 0 | Z65: 0 | AA65: 0 | AB65: 0 | AC65: 0 | AD65: 0 | AE65: 0 | AF65: 0 | AH65: 0.5 | AI65: =SUM(IF('Stinkskabe, LAF-bænke'!$AE$155:$AE$254=23,'Stinkskabe, LAF-bænke'!$W$155:$W$254)) -> 0 | AJ65: =SUM(IF('Stinkskabe, LAF-bænke'!$AE$155:$AE$254=23,'Stinkskabe, LAF-bænke'!$X$155:$X$254)) -> 0 | AK65: =SUM(IF('Stinkskabe, LAF-bænke'!$AE$155:$AE$254=23,'Stinkskabe, LAF-bænke'!$Y$155:$Y$254)) -> 0 | AL65: 0 | AM65: 0 | AN65: 0 | AO65: 0 | AP65: 0 | AQ65: 0 | AR65: 0
A66: =IF(ISERROR(INDEX('Stinkskabe, LAF-bænke'!$A$31:$A$130,MATCH(24,'Stinkskabe, LAF-bænke'!$AE$155:$AE$254,0))),"",INDEX('Stinkskabe, LAF-bænke'!$A$31:$A$130,MATCH(24,'Stinkskabe, LAF-bænke'!$AE$155:$AE$254,0))) ->  | B66: B-hjul | E66: Fjerneste punkt | T66: 2 | U66: 2 | V66: 0.5 | W66: =SUM(IF('Stinkskabe, LAF-bænke'!$AE$155:$AE$254=24,'Stinkskabe, LAF-bænke'!$A$155:$A$254)) -> 0 | X66: =SUM(IF('Stinkskabe, LAF-bænke'!$AE$155:$AE$254=24,'Stinkskabe, LAF-bænke'!$B$155:$B$254)) -> 0 | Y66: =SUM(IF('Stinkskabe, LAF-bænke'!$AE$155:$AE$254=24,'Stinkskabe, LAF-bænke'!$C$155:$C$254)) -> 0 | Z66: 0 | AA66: 0 | AB66: 0 | AC66: 0 | AD66: 0 | AE66: 0 | AF66: 0 | AH66: 0.5 | AI66: =SUM(IF('Stinkskabe, LAF-bænke'!$AE$155:$AE$254=24,'Stinkskabe, LAF-bænke'!$W$155:$W$254)) -> 0 | AJ66: =SUM(IF('Stinkskabe, LAF-bænke'!$AE$155:$AE$254=24,'Stinkskabe, LAF-bænke'!$X$155:$X$254)) -> 0 | AK66: =SUM(IF('Stinkskabe, LAF-bænke'!$AE$155:$AE$254=24,'Stinkskabe, LAF-bænke'!$Y$155:$Y$254)) -> 0 | AL66: 0 | AM66: 0 | AN66: 0 | AO66: 0 | AP66: 0 | AQ66: 0 | AR66: 0
A67: =IF(ISERROR(INDEX('Stinkskabe, LAF-bænke'!$A$31:$A$130,MATCH(25,'Stinkskabe, LAF-bænke'!$AE$155:$AE$254,0))),"",INDEX('Stinkskabe, LAF-bænke'!$A$31:$A$130,MATCH(25,'Stinkskabe, LAF-bænke'!$AE$155:$AE$254,0))) ->  | B67: B-hjul | E67: Fjerneste punkt | T67: 2 | U67: 2 | V67: 0.5 | W67: =SUM(IF('Stinkskabe, LAF-bænke'!$AE$155:$AE$254=25,'Stinkskabe, LAF-bænke'!$A$155:$A$254)) -> 0 | X67: =SUM(IF('Stinkskabe, LAF-bænke'!$AE$155:$AE$254=25,'Stinkskabe, LAF-bænke'!$B$155:$B$254)) -> 0 | Y67: =SUM(IF('Stinkskabe, LAF-bænke'!$AE$155:$AE$254=25,'Stinkskabe, LAF-bænke'!$C$155:$C$254)) -> 0 | Z67: 0 | AA67: 0 | AB67: 0 | AC67: 0 | AD67: 0 | AE67: 0 | AF67: 0 | AH67: 0.5 | AI67: =SUM(IF('Stinkskabe, LAF-bænke'!$AE$155:$AE$254=25,'Stinkskabe, LAF-bænke'!$W$155:$W$254)) -> 0 | AJ67: =SUM(IF('Stinkskabe, LAF-bænke'!$AE$155:$AE$254=25,'Stinkskabe, LAF-bænke'!$X$155:$X$254)) -> 0 | AK67: =SUM(IF('Stinkskabe, LAF-bænke'!$AE$155:$AE$254=25,'Stinkskabe, LAF-bænke'!$Y$155:$Y$254)) -> 0 | AL67: 0 | AM67: 0 | AN67: 0 | AO67: 0 | AP67: 0 | AQ67: 0 | AR67: 0
A68: =IF(ISERROR(INDEX('Stinkskabe, LAF-bænke'!$A$31:$A$130,MATCH(26,'Stinkskabe, LAF-bænke'!$AE$155:$AE$254,0))),"",INDEX('Stinkskabe, LAF-bænke'!$A$31:$A$130,MATCH(26,'Stinkskabe, LAF-bænke'!$AE$155:$AE$254,0))) ->  | B68: B-hjul | E68: Fjerneste punkt | T68: 2 | U68: 2 | V68: 0.5 | W68: =SUM(IF('Stinkskabe, LAF-bænke'!$AE$155:$AE$254=26,'Stinkskabe, LAF-bænke'!$A$155:$A$254)) -> 0 | X68: =SUM(IF('Stinkskabe, LAF-bænke'!$AE$155:$AE$254=26,'Stinkskabe, LAF-bænke'!$B$155:$B$254)) -> 0 | Y68: =SUM(IF('Stinkskabe, LAF-bænke'!$AE$155:$AE$254=26,'Stinkskabe, LAF-bænke'!$C$155:$C$254)) -> 0 | Z68: 0 | AA68: 0 | AB68: 0 | AC68: 0 | AD68: 0 | AE68: 0 | AF68: 0 | AH68: 0.5 | AI68: =SUM(IF('Stinkskabe, LAF-bænke'!$AE$155:$AE$254=26,'Stinkskabe, LAF-bænke'!$W$155:$W$254)) -> 0 | AJ68: =SUM(IF('Stinkskabe, LAF-bænke'!$AE$155:$AE$254=26,'Stinkskabe, LAF-bænke'!$X$155:$X$254)) -> 0 | AK68: =SUM(IF('Stinkskabe, LAF-bænke'!$AE$155:$AE$254=26,'Stinkskabe, LAF-bænke'!$Y$155:$Y$254)) -> 0 | AL68: 0 | AM68: 0 | AN68: 0 | AO68: 0 | AP68: 0 | AQ68: 0 | AR68: 0
A69: =IF(ISERROR(INDEX('Stinkskabe, LAF-bænke'!$A$31:$A$130,MATCH(27,'Stinkskabe, LAF-bænke'!$AE$155:$AE$254,0))),"",INDEX('Stinkskabe, LAF-bænke'!$A$31:$A$130,MATCH(27,'Stinkskabe, LAF-bænke'!$AE$155:$AE$254,0))) ->  | B69: B-hjul | E69: Fjerneste punkt | T69: 2 | U69: 2 | V69: 0.5 | W69: =SUM(IF('Stinkskabe, LAF-bænke'!$AE$155:$AE$254=27,'Stinkskabe, LAF-bænke'!$A$155:$A$254)) -> 0 | X69: =SUM(IF('Stinkskabe, LAF-bænke'!$AE$155:$AE$254=27,'Stinkskabe, LAF-bænke'!$B$155:$B$254)) -> 0 | Y69: =SUM(IF('Stinkskabe, LAF-bænke'!$AE$155:$AE$254=27,'Stinkskabe, LAF-bænke'!$C$155:$C$254)) -> 0 | Z69: 0 | AA69: 0 | AB69: 0 | AC69: 0 | AD69: 0 | AE69: 0 | AF69: 0 | AH69: 0.5 | AI69: =SUM(IF('Stinkskabe, LAF-bænke'!$AE$155:$AE$254=27,'Stinkskabe, LAF-bænke'!$W$155:$W$254)) -> 0 | AJ69: =SUM(IF('Stinkskabe, LAF-bænke'!$AE$155:$AE$254=27,'Stinkskabe, LAF-bænke'!$X$155:$X$254)) -> 0 | AK69: =SUM(IF('Stinkskabe, LAF-bænke'!$AE$155:$AE$254=27,'Stinkskabe, LAF-bænke'!$Y$155:$Y$254)) -> 0 | AL69: 0 | AM69: 0 | AN69: 0 | AO69: 0 | AP69: 0 | AQ69: 0 | AR69: 0
A70: =IF(ISERROR(INDEX('Stinkskabe, LAF-bænke'!$A$31:$A$130,MATCH(28,'Stinkskabe, LAF-bænke'!$AE$155:$AE$254,0))),"",INDEX('Stinkskabe, LAF-bænke'!$A$31:$A$130,MATCH(28,'Stinkskabe, LAF-bænke'!$AE$155:$AE$254,0))) ->  | B70: B-hjul | E70: Fjerneste punkt | T70: 2 | U70: 2 | V70: 0.5 | W70: =SUM(IF('Stinkskabe, LAF-bænke'!$AE$155:$AE$254=28,'Stinkskabe, LAF-bænke'!$A$155:$A$254)) -> 0 | X70: =SUM(IF('Stinkskabe, LAF-bænke'!$AE$155:$AE$254=28,'Stinkskabe, LAF-bænke'!$B$155:$B$254)) -> 0 | Y70: =SUM(IF('Stinkskabe, LAF-bænke'!$AE$155:$AE$254=28,'Stinkskabe, LAF-bænke'!$C$155:$C$254)) -> 0 | Z70: 0 | AA70: 0 | AB70: 0 | AC70: 0 | AD70: 0 | AE70: 0 | AF70: 0 | AH70: 0.5 | AI70: =SUM(IF('Stinkskabe, LAF-bænke'!$AE$155:$AE$254=28,'Stinkskabe, LAF-bænke'!$W$155:$W$254)) -> 0 | AJ70: =SUM(IF('Stinkskabe, LAF-bænke'!$AE$155:$AE$254=28,'Stinkskabe, LAF-bænke'!$X$155:$X$254)) -> 0 | AK70: =SUM(IF('Stinkskabe, LAF-bænke'!$AE$155:$AE$254=28,'Stinkskabe, LAF-bænke'!$Y$155:$Y$254)) -> 0 | AL70: 0 | AM70: 0 | AN70: 0 | AO70: 0 | AP70: 0 | AQ70: 0 | AR70: 0
A71: =IF(ISERROR(INDEX('Stinkskabe, LAF-bænke'!$A$31:$A$130,MATCH(29,'Stinkskabe, LAF-bænke'!$AE$155:$AE$254,0))),"",INDEX('Stinkskabe, LAF-bænke'!$A$31:$A$130,MATCH(29,'Stinkskabe, LAF-bænke'!$AE$155:$AE$254,0))) ->  | B71: B-hjul | E71: Fjerneste punkt | T71: 2 | U71: 2 | V71: 0.5 | W71: =SUM(IF('Stinkskabe, LAF-bænke'!$AE$155:$AE$254=29,'Stinkskabe, LAF-bænke'!$A$155:$A$254)) -> 0 | X71: =SUM(IF('Stinkskabe, LAF-bænke'!$AE$155:$AE$254=29,'Stinkskabe, LAF-bænke'!$B$155:$B$254)) -> 0 | Y71: =SUM(IF('Stinkskabe, LAF-bænke'!$AE$155:$AE$254=29,'Stinkskabe, LAF-bænke'!$C$155:$C$254)) -> 0 | Z71: 0 | AA71: 0 | AB71: 0 | AC71: 0 | AD71: 0 | AE71: 0 | AF71: 0 | AH71: 0.5 | AI71: =SUM(IF('Stinkskabe, LAF-bænke'!$AE$155:$AE$254=29,'Stinkskabe, LAF-bænke'!$W$155:$W$254)) -> 0 | AJ71: =SUM(IF('Stinkskabe, LAF-bænke'!$AE$155:$AE$254=29,'Stinkskabe, LAF-bænke'!$X$155:$X$254)) -> 0 | AK71: =SUM(IF('Stinkskabe, LAF-bænke'!$AE$155:$AE$254=29,'Stinkskabe, LAF-bænke'!$Y$155:$Y$254)) -> 0 | AL71: 0 | AM71: 0 | AN71: 0 | AO71: 0 | AP71: 0 | AQ71: 0 | AR71: 0
A72: =IF(ISERROR(INDEX('Stinkskabe, LAF-bænke'!$A$31:$A$130,MATCH(30,'Stinkskabe, LAF-bænke'!$AE$155:$AE$254,0))),"",INDEX('Stinkskabe, LAF-bænke'!$A$31:$A$130,MATCH(30,'Stinkskabe, LAF-bænke'!$AE$155:$AE$254,0))) ->  | B72: B-hjul | E72: Fjerneste punkt | T72: 2 | U72: 2 | V72: 0.5 | W72: =SUM(IF('Stinkskabe, LAF-bænke'!$AE$155:$AE$254=30,'Stinkskabe, LAF-bænke'!$A$155:$A$254)) -> 0 | X72: =SUM(IF('Stinkskabe, LAF-bænke'!$AE$155:$AE$254=30,'Stinkskabe, LAF-bænke'!$B$155:$B$254)) -> 0 | Y72: =SUM(IF('Stinkskabe, LAF-bænke'!$AE$155:$AE$254=30,'Stinkskabe, LAF-bænke'!$C$155:$C$254)) -> 0 | Z72: 0 | AA72: 0 | AB72: 0 | AC72: 0 | AD72: 0 | AE72: 0 | AF72: 0 | AH72: 0.5 | AI72: =SUM(IF('Stinkskabe, LAF-bænke'!$AE$155:$AE$254=30,'Stinkskabe, LAF-bænke'!$W$155:$W$254)) -> 0 | AJ72: =SUM(IF('Stinkskabe, LAF-bænke'!$AE$155:$AE$254=30,'Stinkskabe, LAF-bænke'!$X$155:$X$254)) -> 0 | AK72: =SUM(IF('Stinkskabe, LAF-bænke'!$AE$155:$AE$254=30,'Stinkskabe, LAF-bænke'!$Y$155:$Y$254)) -> 0 | AL72: 0 | AM72: 0 | AN72: 0 | AO72: 0 | AP72: 0 | AQ72: 0 | AR72: 0
S73: Sum | W73: =SUM(W43:W72) -> 4500 | X73: =SUM(X43:X72) -> 648 | Y73: =SUM(Y43:Y72) -> 648 | AF73: =SUM(AF43:AF72) -> 534.29376 | AI73: =SUM(AI43:AI72) -> 4500 | AJ73: =SUM(AJ43:AJ72) -> 270 | AK73: =SUM(AK43:AK72) -> 90 | AR73: =SUM(AR43:AR72) -> 366.0384

Sheet Besparelsespotentialer (hidden)
A1: Besparelsespotentialer
A2: Stinkskabe, LAF-bænke
A3: • Ved lufthastigheder over 0,4 m/s i lugen (fuldt åbent) foreslås reducering af lufthastighed til 0,4 m/s, såfremt der ikke arbejdes med sundhedsfarlige eller ukendte stoffer, at afstanden mellem ganglinie og stinkskabe er minimum 1,5 m og/eller der installeres en sugearm i stinkskabet
A4: • Ved lufthastigheder over 0,3 m/s i lugen (lukket) foreslås reducering af lufthastighed til 0,3 m/s i arbejdstiden
A5: • Ved lufthastigheder over 0,1 m/s i lugen (lukket) foreslås en reducering af lufthastigheden til 0,1 m/s uden for arbejdstiden. Dette kræver en overordnet styring af laboratoriet, hvor det sikres, at laboratoriet gennemskylles inden brug
A6: • Ved et tryk på over 40 Pa over stinkskabet foreslås reducering af tryk til 40 Pa. Se guide omkring opbygning af stinkskabe
A7: • Såfremt der ikke anvendes varmegenvinding foreslås etablering af dette. Det antages at varmegenvindingsgraden er 63%
A9: Ventilatorer
A10: • Såfremt der anvendes ventilator med F-hjul foreslås denne udskiftet til en ventilator med B-hjul. Der antages en virkningsgrad på 40% for ventilatorer med F-hjul og 50% for ventilatorer med B-hjul
A12: • Såfremt trykføleren der styrer ventilatoren, er placeret nær sugesiden, så foreslås denne flyttet til det fjerneste punkt i kanalsystemet. Herved reduceres trykstigningen over ventilatoren
A14: • Ved en luftmængdereduktion reduceres elforbruget til ventilatordriften ligeledes
A16: Driftstider
A17: • Alle timer i weekenden antages at være udenfor arbejdstid

Sheet Sikkerhedsfaktor (hidden)
A1: Sikkerhedsfaktor
A3: Guide til målinger og registreringer af sikkerhedsfaktor - Læs guide ved tryk på billedikonet til højre for teksten →
D9: Guide
A11: Opnåede sikkerhedsfaktorer ved minimum lufthastigheder i lugeåbning
A13: Min lufthastighed i lugeåbning: 0,27 m/s | B13: Sikkerhedsfaktor 1: | C13: =IF(P31=2,"Ukendt",IF(P31=1,"Opnået","Ikke opnået")) -> Ukendt
A14: Min lufthastighed i lugeåbning: 0,33 m/s | B14: Sikkerhedsfaktor 10 (DS457 forslag): | C14: =IF(P31=2,"Ukendt",IF(P31=1,"Opnået","Ikke opnået")) -> Ukendt
A15: Min lufthastighed i lugeåbning: 0,41 m/s | B15: Opnået sikkerhedsfaktor 40 ved: | C15: =IF(Q31=2,"Ukendt",IF(Q31=1,"Opnået","Ikke opnået")) -> Ukendt
A16: Min lufthastighed i lugeåbning: 0,45 m/s | B16: Opnået sikkerhedsfaktor 100 ved: | C16: =IF(Q31=2,"Ukendt",IF(Q31=1,"Opnået","Ikke opnået")) -> Ukendt
A17: Min lufthastighed i lugeåbning: 0,50 m/s | B17: Opnået sikkerhedsfaktor >10000 ved: | C17: =IF(Q31=2,"Ukendt",IF(Q31=1,"Opnået","Ikke opnået")) -> Ukendt
A20: Lufthastigheder i referencepunkter
A21: Målested | C21: Lufthastighed i lugeåbning [m/s] | I21: Målepunkt | J21: Målinger | O21: Data til vurdering af sikkerhedsfaktoren
C22: 0.3 | D22: 0.5 | K22: 0.3 | L22: 0.5 | M22: 1 | O22: 0.2 | P22: 0.3 | Q22: 0.5 | R22: 1
A23: Inde i stinkskabet ved målerørets munding [A] | C23: - | I23: A | L23: 0 | M23: 0.13 | O23: =IF(B23<=J23,1,0) -> 1 | Q23: =IF(D23="",2,IF(D23<=L23,1,0)) -> 2 | R23: =IF(E23<=M23,1,0) -> 1
A24: Over stinkskabet ved højre hjørne 7 cm over skabets top [B] | C24: - | I24: B | L24: 0.16 | M24: 0.39 | O24: =IF(B24<=J24,1,0) -> 1 | Q24: 2 | R24: 1
A25: Over stinkskabet ved højre hjørne 21 cm over skabets top [C] | C25: - | I25: C | L25: 0.21 | M25: 0.19 | O25: 1 | Q25: 2 | R25: 1
A26: Over stinkskabet ved højre hjørne 21 cm under loft [D] | C26: - | I26: D | L26: 0.22 | M26: 0.54 | O26: 1 | Q26: 2 | R26: 1
A27: Over stinkskabet ved højre hjørne 7 cm under loft [E] | C27: - | I27: E | L27: 0.11 | M27: 0.69 | O27: 1 | Q27: 2 | R27: 1
A28: 20 cm foran stinkskabet midt i stinkskabslugen i vertikal retning, 24 cm til venstre for venstre kant [F] | I28: F | K28: 0.1 | L28: 0.11 | M28: 0.25 | O28: 1 | P28: =IF(C28="",2,IF(C28<=K28,1,0)) -> 2 | Q28: =IF(D28="",2,IF(D28<=L28,1,0)) -> 2 | R28: 1
A29: 20 cm foran stinkskabet midt i stinkskabslugen i vertikal retning, 2/3 til højre for venstre kant [G] | I29: G | K29: 0.04 | L29: 0.07 | M29: 0.15 | O29: 1 | P29: =IF(C29="",2,IF(C29<=K29,1,0)) -> 2 | Q29: 2 | R29: 1
A30: 20 cm foran stinkskabet ved toppen af stinkskabet, 2/3 til højre for venstre kant [I] | I30: H | K30: 0.15 | L30: 0.24 | M30: 0.35 | O30: 1 | P30: =IF(C30="",2,IF(C30<=K30,1,0)) -> 2 | Q30: 2 | R30: 1
O31: =IF(AVERAGE(O23:O30)=1,1,0) -> 1 | P31: =IF(COUNTIF(P23:P30,2)>0,2,IF(AVERAGE(P23:P30)=1,1,0)) -> 2 | Q31: =IF(COUNTIF(Q23:Q30,2)>0,2,IF(AVERAGE(Q23:Q30)=1,1,0)) -> 2 | R31: =IF(AVERAGE(R23:R30)=1,1,0) -> 1
I33: Opnået sikkerhedsfaktor: | K33: =IF(P31=1,"1","Mindre end 1") -> Mindre end 1 | L33: =IF(Q31=1,"Opnået","Ikke opnået") -> Ikke opnået | M33: =IF(R31=1,"Opnået","Ikke opnået") -> Opnået

Sheet Ventilator_EHH (hidden)
J2: Guide til målinger og registreringer til bestemmelse af ventilatorers elforbrug - Læs guide ved at trykke på billedikonet til højre for teksten →
D3: målt | F3: Oplyst | H3: beregnet
B4: Signatur:
V8: 7 eksempler på energioptimeringstilfælde
V10: Det kan ses at følerplacering i kanal længst fra ventilator (p5k) giver størst energibesparelse
B12: Denne registrering skal altid gennemføres først | W12: Konstant kørende ventilationsanlæg holder konstant sugetryk og suger på maks
B13: maks flow: | D13: =SUM('Stinkskabe, LAF-bænke'!A155:A253) -> 4500 | E13: m3/h | W13: ud fra føler ved sugeside af ventilator | AA13: (Stinkskabsindløb er uændret) | AE13: reference,
W14: Tal ud fra makssituation | AE14: dette felt må kun | AK14: 1 | AL14: Ved sugeside af ventilator
W15: totalvirkningsgrad: | Y15: =$F$47 -> 0.4 | AA15: skriv 0,4 eller 0,6 | AE15: ændres mht | AK15: 2 | AL15: I kanal længst fra ventilator
D16: relativ afstand fra ventilator målt langs hovedkanal | W16: aktuel flow=(max) | Y16: =AB16*$D$13 -> 4500 | Z16: m3/h | AA16: svarer til | AB16: 1 | AC16: af maks flow | AE16: totalvirkningsgrad
D17: 0 | F17: 20 | H17: 40 | J17: 60 | L17: 80 | N17: 100 | W17: dp tryk | Y17: =$P$24*(Y16/$D$13)^2 -> 75 | AK17: =INDEX(AK14:AK15,MATCH(AL17,AL14:AL15,0)) -> 2 | AL17: =D42 -> I kanal længst fra ventilator
W18: dp sug | Y18: =$N$24 -> 500 | Z18: *)1 | AB18: styres af regulator | AL18: FALSE
D19: begyndelsessituation hvor der måles 5 værdier ved fuldt maks flow | W19: dp trykdifferens | Y19: =Y17+Y18 -> 575 | AA19: pos tal
W20: P maks: | Y20: =Y16/3600*Y19/Y15 -> 1796.875 | Z20: Watt
AL21: =$N$24 -> 500 | AM21: 1 | AN21: =FALSE -> FALSE
U22: 1 | W22: Konstant kørende ventilationsanlæg holder konstant sugetryk | AL22: =$N$24-(D28-40) -> 430 | AM22: 1 | AN22: =TRUE -> TRUE
D23: p5k(kanal) | F23: p4k(kanal) | H23: p3k(kanal) | J23: p2k(kanal) | L23: p1 | N23: p0 | W23: ud fra føler ved sugeside af ventilator | AA23: (tryktab over stinkskabe reduceret til 40 Pa ved maks flow) | AL23: =$D$24+($N$24-$D$24)*(F48/$D$13)^2 -> 500 | AM23: 2 | AN23: =FALSE -> FALSE
B24: Regulerende | D24: 150 | F24: =$D$24+($N$24-$D$24)*F$17/100 -> 220 | H24: =$D$24+($N$24-$D$24)*H$17/100 -> 290 | J24: =$D$24+($N$24-$D$24)*J$17/100 -> 360 | L24: =$D$24+($N$24-$D$24)*L$17/100 -> 430 | N24: 500 | P24: 75 | AL24: =$D$24-($D$28-40)+($N$24-$D$24)*(F48/$D$13)^2 -> 430 | AM24: 2 | AN24: =TRUE -> TRUE
B25: Spjæld (x) | D25: X | F25: X | H25: X | J25: X | L25: X | N25: undertryk | P25: Pa | W25: totalvirkningsgrad: | Y25: =$F$47 -> 0.4 | AA25: skriv 0,4 eller 0,6
W26: aktuel flow=(max) | Y26: =AB26*$D$13 -> 4500 | Z26: m3/h | AA26: svarer til | AB26: 1 | AC26: af maks flow | AL26: =INDEX(AL21:AL24,MATCH(AK17&AL18,AM21:AM24&AN21:AN24,0)) -> 500 | AM26: den korrekte formel der indsættes i celle F49
D27: p5s | F27: p4s | H27: p4s | J27: p2s | L27: p1s | W27: dp tryk | Y27: =$P$24*(Y26/$D$13)^2 -> 75
D28: 110 | F28: =$D$28 -> 110 | H28: =$D$28 -> 110 | J28: =$D$28 -> 110 | L28: =$D$28 -> 110 | W28: dp sug | Y28: =$N$24-(D28-40) -> 430 | Z28: *)1 | AA28: pos tal | AB28: styres af regulator
W29: dp trykdifferens | Y29: =Y27+Y28 -> 505
W30: P maks: | Y30: =Y26/3600*Y29/Y25 -> 1578.125 | Z30: Watt
U32: 2 | W32: Konstant kørende ventilationsanlæg holder konstant sugetryk
W33: ud fra føler ved sugeside af ventilator | AA33: (Stinkskabsindløb er uændret)
D35: skab helt åben | F35: skab helt åben | H35: skab helt åben | J35: skab helt åben | L35: skab helt åben | W35: totalvirkningsgrad: | Y35: =$F$47 -> 0.4 | AA35: skriv 0,4 eller 0,6
W36: aktuel flow=(max) | Y36: =AB36*$D$13 -> 4050 | Z36: m3/h | AA36: svarer til | AB36: 0.9 | AC36: af maks flow
W37: dp tryk | Y37: =$P$24*(Y36/$D$13)^2 -> 60.75
W38: dp sug | Y38: =$N$24 -> 500 | Z38: *)1 | AA38: pos tal | AB38: styres af regulator
D39: Konstant kørende ventilationsanlæg holder konstant sugetryk | W39: dp trykdifferens | Y39: =Y37+Y38 -> 560.75
W40: P maks: | Y40: =Y36/3600*Y39/Y35 -> 1577.109375 | Z40: Watt
D41: Trykfølerplacering:
D42: I kanal længst fra ventilator | G42:  | H42: ← vælg på rullemenu | U42: 3 | W42: Konstant kørende ventilationsanlæg holder konstant sugetryk
W43: ud fra føler i kanal længst fra ventilator | AA43: (Stinkskabsindløb er uændret)
W46: totalvirkningsgrad: | Y46: =$F$47 -> 0.4 | AA46: skriv 0,4 eller 0,6
D47: totalvirkningsgrad: | F47: 0.4 | J47: ← skriv 0,4 eller 0,6 | W47: aktuel flow=(max) | Y47: =AB47*$D$13 -> 4050 | Z47: m3/h | AA47: svarer til | AB47: 0.9 | AC47: af maks flow
D48: aktuel flow=(max) | F48: =D13 -> 4500 | G48: m3/h | J48: svarer til: | K48: =F48/$D$13 -> 1 | W48: dp tryk | Y48: =$P$24*(Y47/$D$13)^2 -> 60.75
D49: dp tryk | F49: =$P$24*(F48/$D$13)^2 -> 75 | W49: dp sug | Y49: =$D$24+($N$24-$D$24)*(Y47/$D$13)^2 -> 433.5 | Z49: *)2 | AA49: pos tal | AB49: styres af regulator
D50: dp sug | F50: =AL26 -> 500 | J50: pos tal styres af regulator | W50: dp trykdiffferens | Y50: =Y48+Y49 -> 494.25
D51: dp trykdifferens | F51: =F49+F50 -> 575 | W51: P maks: | Y51: =Y47/3600*Y50/Y46 -> 1390.078125 | Z51: Watt
D52: P maks: | F52: =F48/3600*F51/F47 -> 1796.875 | G52: Watt
U53: 4 | W53: Konstant kørende ventilationsanlæg holder konstant sugetryk
D54: Er føleren placeret nært sugesiden af ventilatoren | I54: Ja/nej | W54: ud fra føler i kanal længst fra ventilator
D55: Anvendes der en ventilator med F-hjul mm. | I55: Ja/nej
W56: totalvirkningsgrad: | Y56: =$F$47 -> 0.4 | AA56: skriv 0,4 eller 0,6
W57: aktuel flow=(max) | Y57: =AB57*$D$13 -> 3150 | Z57: m3/h | AA57: svarer til | AB57: 0.7 | AC57: af maks flow
W58: dp tryk | Y58: =$P$24*(Y57/$D$13)^2 -> 36.75
W59: dp sug | Y59: =$D$24+($N$24-$D$24)*(Y57/$D$13)^2 -> 321.5 | Z59: *)2 | AA59: pos tal | AB59: styres af regulator
W60: dp trykdiffferens | Y60: =Y58+Y59 -> 358.25
W61: P maks: | Y61: =Y57/3600*Y60/Y56 -> 783.671875 | Z61: Watt
U63: 5 | W63: Konstant kørende ventilationsanlæg holder konstant sugetryk
W64: ud fra føler i kanal længst fra ventilator | AB64: (Stinkskabsindløb er uændret)
W66: totalvirkningsgrad: | Y66: =$F$47 -> 0.4 | AA66: skriv 0,4 eller 0,6
W67: aktuel flow=(max) | Y67: =AB67*$D$13 -> 1800 | Z67: m3/h | AA67: svarer til | AB67: 0.4 | AC67: af maks flow
W68: dp tryk | Y68: =$P$24*(Y67/$D$13)^2 -> 12
W69: dp sug | Y69: =$D$24+($N$24-$D$24)*(Y67/$D$13)^2 -> 206 | Z69: *)2 | AA69: pos tal | AB69: styres af regulator
W70: dp trykdiffferens | Y70: =Y68+Y69 -> 218
W71: P maks: | Y71: =Y67/3600*Y70/Y66 -> 272.5 | Z71: Watt
U73: 6 | W73: Konstant kørende ventilationsanlæg holder konstant sugetryk
W74: ud fra føler i kanal længst fra ventilator | AA74: (tryktab over stinkskabe reduceret til 40 Pa ved maks flow)
W76: totalvirkningsgrad: | Y76: =$F$47 -> 0.4 | AA76: skriv 0,4 eller 0,6
W77: aktuel flow=(max) | Y77: =AB77*$D$13 -> 900 | Z77: m3/h | AA77: svarer til | AB77: 0.2 | AC77: af maks flow
W78: dp tryk | Y78: =$P$24*(Y77/$D$13)^2 -> 3
W79: dp sug | Y79: =$D$24-($D$28-40)+($N$24-$D$24)*(Y77/$D$13)^2 -> 94 | Z79: *)3 | AB79: styres af regulator
W80: dp trykdiffferens | Y80: =Y78+Y79 -> 97 | AA80: pos tal
W81: P maks: | Y81: =Y77/3600*Y80/Y76 -> 60.625 | Z81: Watt
